Workbook

Sheet Sheet1
D1: Edit | E1: Fixed | F1: Results | L1: Version 4.6
A2: Series | B2: Model | C2: Resolution Width | D2: Resolution Height | E2: Resolution (MP) | F2: Chroma | G2: Interface | H2: Pixel Size (um) | I2: Sensor Size (mm DIAG) | J2: Sensor | K2: Lens Mount | L2: Pixel Format | M2: Bit Depth | N2: Frame Rate (fps) | O2: QE % Peak (@ ~500nm) | P2: Full Well (e-) | Q2: Read Noise (e-) | R2: Dyn Range (dB) | S2: SNRmax (dB) | X2: PACK BIT DEPTH | Y2: MIN_LINE_COUNTS | Z2: LT PARAM | AA2: LINE_COUNTS_MIN | AB2: LINE_COUNTS_MIN2 | AC2: MODEL PARAM(us) | AD2: FRAME_RATE_MAX_PRE | AE2: FRAME_RATE_MAX | AF2: DATARATE(Gbps) | AG2: DEFAULTS FOR RESET RESOLUTION | AI2: SUB_LINE_COUNTS
A3: Zenith | B3: HZ-10000G-M | C3: 4608 | D3: 2176 | E3: =(C3*D3)/1000000 -> 10.027008 | F3: Mono | G3: 100GigE-QSFP28 | H3: 4.5 | I3: =SQRT(C3^2+D3^2)*H3*0.001 -> 22.93174568 | J3: GS4510 | K3: M60/F/EF | L3: MONO/BAYXX8 | M3: =IF( OR((L3=U$5),(L3=U$6),(L3=U$7),(L3=U$8),(L3=U$9)), 8, 10) -> 8 | N3: =AE3 -> 1000 | O3: 63 | P3: 7000 | Q3: 7 | R3: =IF(20*LOG10(P3/Q3)<60, 20*LOG10(P3/Q3), 60) -> 60 | S3: =20*LOG10(SQRT(P3)) -> 38.4509804 | U3: MONO/BAYXX8 | X3: =IF( OR((L3= U$8), (L3 = U$10)), 16, IF(OR((L3 = U$6), (L3 = U$9)), 24, IF((L3 = U$5), 8, 12) )) -> 8 | Y3: =IF( OR(($L3=$U$5),($L3=$U$6),($L3=$U$7),($L3=$U$8),($L3=$U$9)), 176, 235) -> 176 | Z3: =IF(OR(G3=$U$13, G3=$U$14),C3*150/9300, IF(G3=$U$15,C3*400/24000,C3*400/95000)) -> 19.40210526 | AA3: =FLOOR( IF(OR((L3= U$8),(L3= U$10)), Z3*16, IF(OR((L3 = U$6), (L3 = U$9)), Z3*24, IF((L3 = U$5),Y3, Z3*12)) ),1) -> 176 | AB3: =IF(AA3 > Y3, AA3, Y3) -> 176 | AC3: =IF( OR(($L3=$U$5),($L3=$U$6),($L3=$U$7),($L3=$U$8),($L3=$U$9)), 96, 57) -> 96 | AD3: =FLOOR(400000000/((AB3*(D3+AC3))),1) -> 1000 | AE3: =AD3 -> 1000 | AF3: =AE3*C3*D3*X3/1000000000 -> 80.216064 | AG3: 4608 | AH3: 2176 | AI3: 0
A4: Zenith | B4: HZ-10000G-C | C4: 4608 | D4: 2176 | E4: =(C4*D4)/1000000 -> 10.027008 | F4: Color | G4: 100GigE-QSFP28 | H4: 4.5 | I4: 22.93174568 | J4: GS4510 | K4: M60/F/EF | L4: MONO/BAYXX8 | M4: 8 | N4: =AE4 -> 1000 | O4: 63 | P4: 7000 | Q4: 7 | R4: =IF(20*LOG10(P4/Q4)<60, 20*LOG10(P4/Q4), 60) -> 60 | S4: =20*LOG10(SQRT(P4)) -> 38.4509804 | U4: RGB8_PACKED | X4: 8 | Y4: =IF( OR(($L4=$U$5),($L4=$U$6),($L4=$U$7),($L4=$U$8),($L4=$U$9)), 176, 235) -> 176 | Z4: 19.40210526 | AA4: 176 | AB4: =IF(AA4 > Y4, AA4, Y4) -> 176 | AC4: =IF( OR(($L4=$U$5),($L4=$U$6),($L4=$U$7),($L4=$U$8),($L4=$U$9)), 96, 57) -> 96 | AD4: =FLOOR(400000000/((AB4*(D4+AC4))),1) -> 1000 | AE4: =AD4 -> 1000 | AF4: 80.216064 | AG4: 4608 | AH4: 2176 | AI4: 0
A5: Zenith | B5: HZ-21000G-M | C5: 5120 | D5: 4096 | E5: =(C5*D5)/1000000 -> 20.97152 | F5: Mono | G5: 100GigE-QSFP28 | H5: 4.5 | I5: =SQRT(C5^2+D5^2)*H5*0.001 -> 29.50559649 | J5: GS4521 | K5: M60/F/EF | L5: MONO/BAYXX8 | M5: =IF( OR((L5=U$5),(L5=U$6),(L5=U$7),(L5=U$8),(L5=U$9)), 8, 10) -> 8 | N5: =AE5 -> 542 | O5: 63 | P5: 7000 | Q5: 7 | R5: =IF(20*LOG10(P5/Q5)<60, 20*LOG10(P5/Q5), 60) -> 60 | S5: =20*LOG10(SQRT(P5)) -> 38.4509804 | U5: MONO/BAYXX8 | X5: =IF( OR((L5= U$8), (L5 = U$10)), 16, IF(OR((L5 = U$6), (L5 = U$9)), 24, IF((L5 = U$5), 8, 12) )) -> 8 | Y5: =IF( OR(($L5=$U$5),($L5=$U$6),($L5=$U$7),($L5=$U$8),($L5=$U$9)), 176, 354) -> 176 | Z5: =IF(OR(G5=$U$13, G5=$U$14),C5*150/9300, IF(G5=$U$15,C5*400/24000,C5*400/95000)) -> 21.55789474 | AA5: =FLOOR( IF(OR((L5= U$8),(L5= U$10)), Z5*16, IF(OR((L5 = U$6), (L5 = U$9)), Z5*24, IF((L5 = U$5),Y5, Z5*12)) ),1) -> 176 | AB5: =IF(AA5 > Y5, AA5, Y5) -> 176 | AC5: =IF( OR(($L5=$U$5),($L5=$U$6),($L5=$U$7),($L5=$U$8),($L5=$U$9)), 21, 31) -> 21 | AD5: =FLOOR(400000000/((AB5*(D5+AI5))+400*AC5),1) -> 542 | AE5: =AD5 -> 542 | AF5: =AE5*C5*D5*X5/1000000000 -> 90.93251072 | AG5: 5120 | AH5: 4096 | AI5: =IF( OR(($L5=$U$5),($L5=$U$6),($L5=$U$7),($L5=$U$8),($L5=$U$9)), 48, 24) -> 48
A6: Zenith | B6: HZ-21000G-C | C6: 5120 | D6: 4096 | E6: =(C6*D6)/1000000 -> 20.97152 | F6: Color | G6: 100GigE-QSFP28 | H6: 4.5 | I6: 29.50559649 | J6: GS4521 | K6: M60/F/EF | L6: MONO/BAYXX8 | M6: 8 | N6: =AE6 -> 542 | O6: 63 | P6: 7000 | Q6: 7 | R6: =IF(20*LOG10(P6/Q6)<60, 20*LOG10(P6/Q6), 60) -> 60 | S6: =20*LOG10(SQRT(P6)) -> 38.4509804 | U6: RGB8_PACKED | X6: 8 | Y6: =IF( OR(($L6=$U$5),($L6=$U$6),($L6=$U$7),($L6=$U$8),($L6=$U$9)), 176, 354) -> 176 | Z6: 21.55789474 | AA6: 176 | AB6: =IF(AA6 > Y6, AA6, Y6) -> 176 | AC6: =IF( OR(($L6=$U$5),($L6=$U$6),($L6=$U$7),($L6=$U$8),($L6=$U$9)), 21, 31) -> 21 | AD6: =FLOOR(400000000/((AB6*(D6+AI6))+400*AC6),1) -> 542 | AE6: =AD6 -> 542 | AF6: =AE6*C6*D6*X6/1000000000 -> 90.93251072 | AG6: 5120 | AH6: 4096 | AI6: =IF( OR(($L6=$U$5),($L6=$U$6),($L6=$U$7),($L6=$U$8),($L6=$U$9)), 48, 24) -> 48
A7: Zenith | B7: HZ-65000G-M | C7: 9344 | D7: 7000 | E7: 65.408 | F7: Mono | G7: 100GigE-QSFP28 | H7: 3.2 | I7: 37.36064561 | J7: GM3265 | K7: M52/F/EF | L7: MONO/BAYXX8 | M7: 8 | N7: 71 | O7: 66 | P7: 11000 | Q7: 10 | R7: 60 | S7: 40.41392685 | U7: YUV411_PACKED | X7: 8 | Y7: 800 | Z7: 39.34315789 | AA7: 800 | AB7: =IF(AA7 > Y7, AA7, Y7) -> 800 | AC7: 33 | AD7: =IF(OR(G7=$U$13, G7=$U$14), FLOOR(IF(AB7 > Y7/100, 150000000/(AB7*(D7+AC7)), (150000000/(Y7*(D7+AC7)))),1), FLOOR(IF(AB7 > Y7/100, 400000000/(AB7*(D7+AC7)), (400000000/(Y7*(D7+AC7)))),1)) -> 71 | AE7: =FLOOR(IF((10 > (1000000/AD7)-AC7), (1000000/(AC7+10)), AD7),1) -> 71 | AF7: =AE7*C7*D7*X7/1000000000 -> 37.151744 | AG7: 9344 | AH7: 7000
A8: Zenith | B8: HZ-65000G-C | C8: 9344 | D8: 7000 | E8: 65.408 | F8: Color | G8: 100GigE-QSFP28 | H8: 3.2 | I8: 37.36064561 | J8: GM3265 | K8: M52/F/EF | L8: MONO/BAYXX8 | M8: 8 | N8: 71 | O8: 66 | P8: 11000 | Q8: 10 | R8: 60 | S8: 40.41392685 | U8: YUV422_PACKED | X8: 8 | Y8: 800 | Z8: 39.34315789 | AA8: 800 | AB8: 800 | AC8: 33 | AD8: 71 | AE8: 71 | AF8: 37.151744 | AG8: 9344 | AH8: 7000
A9: Zenith | B9: HZ-100G-M | C9: 11276 | D9: 9200 | E9: 103.7392 | F9: Mono | G9: 100GigE-QSFP28 | H9: 3.2 | I9: 46.56942046 | J9: GM32103 | K9: M60/F/EF | L9: MONO/BAYXX8 | M9: 8 | N9: 24 | O9: 67 | P9: 9800 | Q9: 7.5 | R9: 60 | S9: 39.91226076 | U9: YUV444_PACKED | X9: 8 | Y9: 1700 | Z9: 47.47789474 | AA9: 1700 | AB9: 1700 | AC9: 500 | AD9: 24 | AE9: 24 | AF9: 19.9179264 | AG9: 11276 | AH9: 9200
A10: Zenith | B10: HZ-100G-C | C10: 11276 | D10: 9200 | E10: 103.7392 | F10: Color | G10: 100GigE-QSFP28 | H10: 3.2 | I10: 46.56942046 | J10: GM32103 | K10: M60/F/EF | L10: MONO/BAYXX8 | M10: 8 | N10: 24 | O10: 67 | P10: 9800 | Q10: 7.5 | R10: 60 | S10: 39.91226076 | U10: MONO/BAYXX10/12 | X10: 8 | Y10: 1700 | Z10: 47.47789474 | AA10: 1700 | AB10: 1700 | AC10: 500 | AD10: 24 | AE10: 24 | AF10: 19.9179264 | AG10: 11276 | AH10: 9200
A11: Bolt | B11: HB-25000SB-M | C11: 5320 | D11: 4600 | E11: =(C11*D11)/1000000 -> 24.472 | F11: Mono | G11: 25GigE-SFP28 | H11: 2.74 | I11: =SQRT(C11^2+D11^2)*H11*0.001 -> 19.27028579 | J11: IMX530 | K11: C-Mount | L11: MONO/BAYXX8 | M11: =IF( OR((L11=U$5),(L11=U$6),(L11=U$7),(L11=U$8),(L11=U$9)), 8, 12) -> 8 | N11: =AE11 -> 98 | O11: 78 | P11: =IF( OR((L11=U$5),(L11=U$6),(L11=U$7),(L11=U$8),(L11=U$9)), 9500/4, 9500) -> 2375 | Q11: 2 | R11: =IF(20*LOG10(P11/Q11)<72, 20*LOG10(P11/Q11), 72) -> 61.49267237 | S11: =20*LOG10(SQRT(P11)) -> 33.75663614 | U11: MONO/BAYXX10/12Packed | X11: 8 | Y11: =IF( OR((L11=U$5),(L11=U$6),(L11=U$7),(L11=U$8),(L11=U$9)), 840, 1224) -> 840 | Z11: =IF(OR(G11=$U$13, G11=$U$14),C11*150/9300, C11*400/24000) -> 88.66666667 | AA11: 840 | AB11: =IF(AA11 > Y11, AA11, Y11) -> 840 | AC11: 240 | AD11: 98 | AE11: =FLOOR(IF((10 > (1000000/AD11)-AC11), (1000000/(AC11+10)), AD11),1) -> 98 | AF11: =AE11*C11*D11*X11/1000000000 -> 19.186048 | AG11: 5320 | AH11: 4600
A12: Bolt | B12: HB-25000SB-C | C12: 5320 | D12: 4600 | E12: =(C12*D12)/1000000 -> 24.472 | F12: Color | G12: 25GigE-SFP28 | H12: 2.74 | I12: 19.27028579 | J12: IMX530 | K12: C-Mount | L12: MONO/BAYXX8 | M12: 8 | N12: =AE12 -> 98 | O12: 72 | P12: 2375 | Q12: 2 | R12: =IF(20*LOG10(P12/Q12)<72, 20*LOG10(P12/Q12), 72) -> 61.49267237 | S12: =20*LOG10(SQRT(P12)) -> 33.75663614 | X12: 8 | Y12: 840 | Z12: 88.66666667 | AA12: 840 | AB12: =IF(AA12 > Y12, AA12, Y12) -> 840 | AC12: 240 | AD12: 98 | AE12: =FLOOR(IF((10 > (1000000/AD12)-AC12), (1000000/(AC12+10)), AD12),1) -> 98 | AF12: 19.186048 | AG12: 5320 | AH12: 4600
A13: Bolt | B13: HB-20000SB-M | C13: 4504 | D13: 4504 | E13: 20.286016 | F13: Mono | G13: 25GigE-SFP28 | H13: 2.74 | I13: 17.452753 | J13: IMX531 | K13: C-Mount | L13: MONO/BAYXX8 | M13: 8 | N13: 100 | O13: 78 | P13: 2375 | Q13: 2 | R13: 61.49267237 | S13: 33.75663614 | U13: 10GigE-BaseT | X13: 8 | Y13: 840 | Z13: 75.06666667 | AA13: 840 | AB13: 840 | AC13: 240 | AD13: 100 | AE13: 100 | AF13: 16.2288128 | AG13: 4504 | AH13: 4504
A14: Bolt | B14: HB-20000SB-C | C14: 4504 | D14: 4504 | E14: 20.286016 | F14: Color | G14: 25GigE-SFP28 | H14: 2.74 | I14: 17.452753 | J14: IMX531 | K14: C-Mount | L14: MONO/BAYXX8 | M14: 8 | N14: 100 | O14: 72 | P14: 2375 | Q14: 2 | R14: 61.49267237 | S14: 33.75663614 | U14: 10GigE-SFP+ | X14: 8 | Y14: 840 | Z14: 75.06666667 | AA14: 840 | AB14: 840 | AC14: 240 | AD14: 100 | AE14: 100 | AF14: 16.2288128 | AG14: 4504 | AH14: 4504
A15: Bolt | B15: HB-16000SB-M | C15: 5320 | D15: 3032 | E15: 16.13024 | F15: Mono | G15: 25GigE-SFP28 | H15: 2.74 | I15: 16.77798096 | J15: IMX532 | K15: C-Mount | L15: MONO/BAYXX8 | M15: 8 | N15: 145 | O15: 78 | P15: 2375 | Q15: 2 | R15: 61.49267237 | S15: 33.75663614 | U15: 25GigE-SFP28 | X15: 8 | Y15: 840 | Z15: 88.66666667 | AA15: 840 | AB15: 840 | AC15: 240 | AD15: 145 | AE15: 145 | AF15: 18.7110784 | AG15: 5320 | AH15: 3032
A16: Bolt | B16: HB-16000SB-C | C16: 5320 | D16: 3032 | E16: 16.13024 | F16: Color | G16: 25GigE-SFP28 | H16: 2.74 | I16: 16.77798096 | J16: IMX532 | K16: C-Mount | L16: MONO/BAYXX8 | M16: 8 | N16: 145 | O16: 72 | P16: 2375 | Q16: 2 | R16: 61.49267237 | S16: 33.75663614 | U16: 100GigE-QSFP28 | X16: 8 | Y16: 840 | Z16: 88.66666667 | AA16: 840 | AB16: 840 | AC16: 240 | AD16: 145 | AE16: 145 | AF16: 18.7110784 | AG16: 5320 | AH16: 3032
A17: Bolt | B17: HB-12000SB-M | C17: 4096 | D17: 3000 | E17: 12.288 | F17: Mono | G17: 25GigE-SFP28 | H17: 2.74 | I17: 13.91132729 | J17: IMX535 | K17: C-Mount | L17: MONO/BAYXX8 | M17: 8 | N17: 185 | O17: 78 | P17: 2375 | Q17: 2 | R17: 61.49267237 | S17: =20*LOG10(SQRT(P17)) -> 33.75663614 | X17: 8 | Y17: =IF( OR((L17=U$5),(L17=U$6),(L17=U$7),(L17=U$8),(L17=U$9)), 665, 1020) -> 665 | Z17: 68.26666667 | AA17: 665 | AB17: =IF(AA17 > Y17, AA17, Y17) -> 665 | AC17: 240 | AD17: 185 | AE17: =FLOOR(IF((10 > (1000000/AD17)-AC17), (1000000/(AC17+10)), AD17),1) -> 185 | AF17: =AE17*C17*D17*X17/1000000000 -> 18.18624 | AG17: 4096 | AH17: 3000
A18: Bolt | B18: HB-12000SB-C | C18: 4096 | D18: 3000 | E18: 12.288 | F18: Color | G18: 25GigE-SFP28 | H18: 2.74 | I18: 13.91132729 | J18: IMX535 | K18: C-Mount | L18: MONO/BAYXX8 | M18: 8 | N18: 185 | O18: 72 | P18: 2375 | Q18: 2 | R18: 61.49267237 | S18: 33.75663614 | X18: 8 | Y18: =IF( OR((L18=U$5),(L18=U$6),(L18=U$7),(L18=U$8),(L18=U$9)), 665, 1020) -> 665 | Z18: 68.26666667 | AA18: 665 | AB18: 665 | AC18: 240 | AD18: 185 | AE18: 185 | AF18: 18.18624 | AG18: 4096 | AH18: 3000
A19: Bolt | B19: HB-8000SB-M | C19: 2840 | D19: 2840 | E19: 8.0656 | F19: Mono | G19: 25GigE-SFP28 | H19: 2.74 | I19: 11.00484426 | J19: IMX536 | K19: C-Mount | L19: MONO/BAYXX8 | M19: 8 | N19: 195 | O19: 78 | P19: 2375 | Q19: 2 | R19: 61.49267237 | S19: 33.75663614 | X19: 8 | Y19: =IF( OR((L19=U$5),(L19=U$6),(L19=U$7),(L19=U$8),(L19=U$9)), 665, 1020) -> 665 | Z19: 47.33333333 | AA19: 665 | AB19: 665 | AC19: 240 | AD19: 195 | AE19: 195 | AF19: 12.582336 | AG19: 2840 | AH19: 2840
A20: Bolt | B20: HB-8000SB-C | C20: 2840 | D20: 2840 | E20: 8.0656 | F20: Color | G20: 25GigE-SFP28 | H20: 2.74 | I20: 11.00484426 | J20: IMX536 | K20: C-Mount | L20: MONO/BAYXX8 | M20: 8 | N20: 195 | O20: 72 | P20: 2375 | Q20: 2 | R20: 61.49267237 | S20: 33.75663614 | X20: 8 | Y20: =IF( OR((L20=U$5),(L20=U$6),(L20=U$7),(L20=U$8),(L20=U$9)), 665, 1020) -> 665 | Z20: 47.33333333 | AA20: 665 | AB20: 665 | AC20: 240 | AD20: 195 | AE20: 195 | AF20: 12.582336 | AG20: 2840 | AH20: 2840
A21: Bolt | B21: HB-5000SB-M | C21: 2448 | D21: 2048 | E21: 5.013504 | F21: Mono | G21: 25GigE-SFP28 | H21: 2.74 | I21: 8.745283372 | J21: IMX537 | K21: C-Mount | L21: MONO/BAYXX8 | M21: 8 | N21: 260 | O21: 78 | P21: 2375 | Q21: 2 | R21: 61.49267237 | S21: 33.75663614 | X21: 8 | Y21: =IF( OR((L21=U$5),(L21=U$6),(L21=U$7),(L21=U$8),(L21=U$9)), 670, 1020) -> 670 | Z21: 40.8 | AA21: 670 | AB21: 670 | AC21: 240 | AD21: 260 | AE21: 260 | AF21: 10.42808832 | AG21: 2448 | AH21: 2048
A22: Bolt | B22: HB-5000SB-C | C22: 2448 | D22: 2048 | E22: 5.013504 | F22: Color | G22: 25GigE-SFP28 | H22: 2.74 | I22: 8.745283372 | J22: IMX537 | K22: C-Mount | L22: MONO/BAYXX8 | M22: 8 | N22: 260 | O22: 72 | P22: 2375 | Q22: 2 | R22: 61.49267237 | S22: 33.75663614 | X22: 8 | Y22: =IF( OR((L22=U$5),(L22=U$6),(L22=U$7),(L22=U$8),(L22=U$9)), 670, 1020) -> 670 | Z22: 40.8 | AA22: 670 | AB22: 670 | AC22: 240 | AD22: 260 | AE22: 260 | AF22: 10.42808832 | AG22: 2448 | AH22: 2048
A23: Bolt | B23: HB-30000S-M | C23: 6464 | D23: 4852 | E23: 31.363328 | F23: Mono | G23: 25GigE-SFP28 | H23: 3.45 | I23: 27.88428219 | J23: IMX342 | K23: M52/F/EF | L23: MONO/BAYXX8 | M23: 8 | N23: 35 | O23: 68 | P23: =IF( OR((L23=U$5),(L23=U$6),(L23=U$7),(L23=U$8),(L23=U$9)), 11000/4, 11000) -> 2750 | Q23: 2 | R23: 62.76605396 | S23: =20*LOG10(SQRT(P23)) -> 34.39332694 | X23: 8 | Y23: =IF( OR((L23=U$5),(L23=U$6),(L23=U$7),(L23=U$8),(L23=U$9)), 2278, 3135) -> 2278 | Z23: 107.7333333 | AA23: 2278 | AB23: =IF(AA23 > Y23, AA23, Y23) -> 2278 | AC23: 80 | AD23: 35 | AE23: =FLOOR(IF((10 > (1000000/AD23)-AC23), (1000000/(AC23+10)), AD23),1) -> 35 | AF23: 8.78173184 | AG23: 6464 | AH23: 4852
A24: Bolt | B24: HB-30000S-C | C24: 6464 | D24: 4852 | E24: 31.363328 | F24: Color | G24: 25GigE-SFP28 | H24: 3.45 | I24: 27.88428219 | J24: IMX342 | K24: M52/F/EF | L24: MONO/BAYXX8 | M24: 8 | N24: 35 | O24: 63 | P24: 2750 | Q24: 2 | R24: 62.76605396 | S24: 34.39332694 | X24: 8 | Y24: =IF( OR((L24=U$5),(L24=U$6),(L24=U$7),(L24=U$8),(L24=U$9)), 2278, 3135) -> 2278 | Z24: 107.7333333 | AA24: 2278 | AB24: 2278 | AC24: 80 | AD24: 35 | AE24: 35 | AF24: 8.78173184 | AG24: 6464 | AH24: 4852
A25: Bolt | B25: HB-20000S-M | C25: 4416 | D25: 4428 | E25: 19.554048 | F25: Mono | G25: 25GigE-SFP28 | H25: 3.45 | I25: 21.57512055 | J25: IMX367 | K25: M52/F/EF | L25: MONO/BAYXX8 | M25: 8 | N25: 43 | O25: 68 | P25: 2750 | Q25: 2 | R25: 62.76605396 | S25: 34.39332694 | X25: 8 | Y25: =IF( OR((L25=U$5),(L25=U$6),(L25=U$7),(L25=U$8),(L25=U$9)), 2052, 3135) -> 2052 | Z25: 73.6 | AA25: 2052 | AB25: 2052 | AC25: 80 | AD25: 43 | AE25: 43 | AF25: 6.726592512 | AG25: 4416 | AH25: 4428
A26: Bolt | B26: HB-20000S-C | C26: 4416 | D26: 4428 | E26: 19.554048 | F26: Color | G26: 25GigE-SFP28 | H26: 3.45 | I26: 21.57512055 | J26: IMX367 | K26: M52/F/EF | L26: MONO/BAYXX8 | M26: 8 | N26: 43 | O26: 63 | P26: 2750 | Q26: 2 | R26: 62.76605396 | S26: 34.39332694 | X26: 8 | Y26: =IF( OR((L26=U$5),(L26=U$6),(L26=U$7),(L26=U$8),(L26=U$9)), 2052, 3135) -> 2052 | Z26: 73.6 | AA26: 2052 | AB26: 2052 | AC26: 80 | AD26: 43 | AE26: 43 | AF26: 6.726592512 | AG26: 4416 | AH26: 4428
A27: Bolt | B27: HB-17000S-M | C27: 5456 | D27: 3076 | E27: 16.782656 | F27: Mono | G27: 25GigE-SFP28 | H27: 3.45 | I27: 21.60860123 | J27: IMX387 | K27: M52/F/EF | L27: MONO/BAYXX8 | M27: 8 | N27: 61 | O27: 68 | P27: 2750 | Q27: 2 | R27: 62.76605396 | S27: 34.39332694 | X27: 8 | Y27: =IF( OR((L27=U$5),(L27=U$6),(L27=U$7),(L27=U$8),(L27=U$9)), 2052, 3135) -> 2052 | Z27: 90.93333333 | AA27: 2052 | AB27: 2052 | AC27: 80 | AD27: 61 | AE27: 61 | AF27: 8.189936128 | AG27: 5456 | AH27: 3076
A28: Bolt | B28: HB-17000S-C | C28: 5456 | D28: 3076 | E28: 16.782656 | F28: Color | G28: 25GigE-SFP28 | H28: 3.45 | I28: 21.60860123 | J28: IMX387 | K28: M52/F/EF | L28: MONO/BAYXX8 | M28: 8 | N28: 61 | O28: 63 | P28: 2750 | Q28: 2 | R28: 62.76605396 | S28: 34.39332694 | X28: 8 | Y28: =IF( OR((L28=U$5),(L28=U$6),(L28=U$7),(L28=U$8),(L28=U$9)), 2052, 3135) -> 2052 | Z28: 90.93333333 | AA28: 2052 | AB28: 2052 | AC28: 80 | AD28: 61 | AE28: 61 | AF28: 8.189936128 | AG28: 5456 | AH28: 3076
A29: Bolt | B29: HB-7000S-M | C29: 3208 | D29: 2200 | E29: 7.0576 | F29: Mono | G29: 25GigE-SFP28 | H29: 4.5 | I29: 17.50451645 | J29: IMX420 | K29: C-Mount | L29: MONO/BAYXX8 | M29: 8 | N29: 210 | O29: 74 | P29: =IF( OR((L29=U$5),(L29=U$6),(L29=U$7),(L29=U$8),(L29=U$9)), 25000/4, 25000) -> 6250 | Q29: 2.5 | R29: 67.95880017 | S29: 37.95880017 | X29: 8 | Y29: =IF( OR((L29=U$5),(L29=U$6),(L29=U$7),(L29=U$8),(L29=U$9)), 831, 1293) -> 831 | Z29: 53.46666667 | AA29: 831 | AB29: 831 | AC29: 92 | AD29: 210 | AE29: 210 | AF29: 11.856768 | AG29: 3208 | AH29: 2200
A30: Bolt | B30: HB-7000S-C | C30: 3208 | D30: 2200 | E30: 7.0576 | F30: Color | G30: 25GigE-SFP28 | H30: 4.5 | I30: 17.50451645 | J30: IMX420 | K30: C-Mount | L30: MONO/BAYXX8 | M30: 8 | N30: 210 | O30: 69 | P30: 6250 | Q30: 2.5 | R30: 67.95880017 | S30: 37.95880017 | X30: 8 | Y30: =IF( OR((L30=U$5),(L30=U$6),(L30=U$7),(L30=U$8),(L30=U$9)), 831, 1293) -> 831 | Z30: 53.46666667 | AA30: 831 | AB30: 831 | AC30: 92 | AD30: 210 | AE30: 210 | AF30: 11.856768 | AG30: 3208 | AH30: 2200
A31: Bolt | B31: HB-2800S-M | C31: 1936 | D31: 1464 | E31: 2.834304 | F31: Mono | G31: 25GigE-SFP28 | H31: 4.5 | I31: 10.92248543 | J31: IMX421 | K31: C-Mount | L31: MONO/BAYXX8 | M31: 8 | N31: 410 | O31: 74 | P31: 6250 | Q31: 2.5 | R31: 67.95880017 | S31: 37.95880017 | X31: 8 | Y31: =IF( OR((L31=U$5),(L31=U$6),(L31=U$7),(L31=U$8),(L31=U$9)), 625, 1121) -> 625 | Z31: 32.26666667 | AA31: 625 | AB31: 625 | AC31: 95 | AD31: 410 | AE31: 410 | AF31: 9.29651712 | AG31: 1936 | AH31: 1464
A32: Bolt | B32: HB-2800S-C | C32: 1936 | D32: 1464 | E32: 2.834304 | F32: Color | G32: 25GigE-SFP28 | H32: 4.5 | I32: 10.92248543 | J32: IMX421 | K32: C-Mount | L32: MONO/BAYXX8 | M32: 8 | N32: 410 | O32: 69 | P32: 6250 | Q32: 2.5 | R32: 67.95880017 | S32: 37.95880017 | X32: 8 | Y32: =IF( OR((L32=U$5),(L32=U$6),(L32=U$7),(L32=U$8),(L32=U$9)), 625, 1121) -> 625 | Z32: 32.26666667 | AA32: 625 | AB32: 625 | AC32: 95 | AD32: 410 | AE32: 410 | AF32: 9.29651712 | AG32: 1936 | AH32: 1464
A33: Bolt | B33: HB-2000S-M | C33: 1624 | D33: 1240 | E33: 2.01376 | F33: Mono | G33: 25GigE-SFP28 | H33: 4.5 | I33: 9.194741106 | J33: IMX422 | K33: C-Mount | L33: MONO/BAYXX8 | M33: 8 | N33: 485 | O33: 74 | P33: 6250 | Q33: 2.5 | R33: 67.95880017 | S33: 37.95880017 | X33: 8 | Y33: =IF( OR((L33=U$5),(L33=U$6),(L33=U$7),(L33=U$8),(L33=U$9)), 625, 1121) -> 625 | Z33: 27.06666667 | AA33: 625 | AB33: 625 | AC33: 78 | AD33: 485 | AE33: 485 | AF33: 7.8133888 | AG33: 1624 | AH33: 1240
A34: Bolt | B34: HB-2000S-C | C34: 1624 | D34: 1240 | E34: =(C35*D35)/1000000 -> 1.7644 | F34: Color | G34: 25GigE-SFP28 | H34: 4.5 | I34: 9.194741106 | J34: IMX422 | K34: C-Mount | L34: MONO/BAYXX8 | M34: 8 | N34: 485 | O34: 69 | P34: 6250 | Q34: 2.5 | R34: 67.95880017 | S34: 37.95880017 | X34: 8 | Y34: =IF( OR((L34=U$5),(L34=U$6),(L34=U$7),(L34=U$8),(L34=U$9)), 625, 1121) -> 625 | Z34: 27.06666667 | AA34: 625 | AB34: 625 | AC34: 78 | AD34: 485 | AE34: 485 | AF34: 7.8133888 | AG34: 1624 | AH34: 1240
A35: Bolt | B35: HB-1800S-M | C35: 1604 | D35: 1100 | E35: =(C36*D36)/1000000 -> 1.7644 | F35: Mono | G35: 25GigE-SFP28 | H35: 9 | I35: 17.50451645 | J35: IMX425 | K35: C-Mount | L35: MONO/BAYXX8 | M35: 8 | N35: 660 | O35: 74 | P35: =IF( OR((L35=U$5),(L35=U$6),(L35=U$7),(L35=U$8),(L35=U$9)), 100000/4, 100000) -> 25000 | Q35: 2.5 | R35: 72 | S35: 43.97940009 | X35: 8 | Y35: =IF( OR((L35=U$5),(L35=U$6),(L35=U$7),(L35=U$8),(L35=U$9)), 470, 658) -> 470 | Z35: 26.73333333 | AA35: 470 | AB35: 470 | AC35: 188 | AD35: 660 | AE35: 660 | AF35: 9.316032 | AG35: 1604 | AH35: 1100
A36: Bolt | B36: HB-1800S-C | C36: 1604 | D36: 1100 | E36: 1.7644 | F36: Color | G36: 25GigE-SFP28 | H36: 9 | I36: 17.50451645 | J36: IMX425 | K36: C-Mount | L36: MONO/BAYXX8 | M36: 8 | N36: 660 | O36: 69 | P36: =IF( OR((L36=U$5),(L36=U$6),(L36=U$7),(L36=U$8),(L36=U$9)), 100000/4, 100000) -> 25000 | Q36: 2.5 | R36: 72 | S36: 43.97940009 | X36: 8 | Y36: =IF( OR((L36=U$5),(L36=U$6),(L36=U$7),(L36=U$8),(L36=U$9)), 470, 658) -> 470 | Z36: 26.73333333 | AA36: 470 | AB36: 470 | AC36: 188 | AD36: 660 | AE36: 660 | AF36: 9.316032 | AG36: 1604 | AH36: 1100
A37: Bolt | B37: HB-500S-M | C37: 812 | D37: 620 | E37: 0.50344 | F37: Mono | G37: 25GigE-SFP28 | H37: 9 | I37: 9.194741106 | J37: IMX426 | K37: C-Mount | L37: MONO/BAYXX8 | M37: 8 | N37: 1586 | O37: 74 | P37: =IF( OR((L37=U$5),(L37=U$6),(L37=U$7),(L37=U$8),(L37=U$9)), 100000/4, 100000) -> 25000 | Q37: 2.5 | R37: 72 | S37: 43.97940009 | X37: =IF( OR((L37= U$8), (L37 = U$10)), 16, IF(OR((L37 = U$6), (L37 = U$9)), 24, IF((L37 = U$5), 8, 12) )) -> 8 | Y37: =IF( OR((L37=U$5),(L37=U$6),(L37=U$7),(L37=U$8),(L37=U$9)), 324, 571) -> 324 | Z37: 13.53333333 | AA37: =FLOOR( IF(OR((L37= U$8),(L37= U$10)), Z37*16, IF(OR((L37 = U$6), (L37 = U$9)), Z37*24, IF((L37 = U$5),Y37, Z37*12)) ),1) -> 324 | AB37: 324 | AC37: 158 | AD37: 1586 | AE37: 1586 | AF37: 6.38764672 | AG37: 812 | AH37: 620
A38: Bolt | B38: HB-500S-C | C38: 812 | D38: 620 | E38: 0.50344 | F38: Color | G38: 25GigE-SFP28 | H38: 9 | I38: 9.194741106 | J38: IMX426 | K38: C-Mount | L38: MONO/BAYXX8 | M38: 8 | N38: 1586 | O38: 69 | P38: =IF( OR((L38=U$5),(L38=U$6),(L38=U$7),(L38=U$8),(L38=U$9)), 100000/4, 100000) -> 25000 | Q38: 2.5 | R38: 72 | S38: 43.97940009 | X38: 8 | Y38: =IF( OR((L38=U$5),(L38=U$6),(L38=U$7),(L38=U$8),(L38=U$9)), 324, 571) -> 324 | Z38: 13.53333333 | AA38: 324 | AB38: 324 | AC38: 158 | AD38: 1586 | AE38: 1586 | AF38: 6.38764672 | AG38: 812 | AH38: 620
A39: Bolt | B39: HB-65000G-M | C39: 9344 | D39: 7000 | E39: 65.408 | F39: Mono | G39: 25GigE-SFP28 | H39: 3.2 | I39: 37.36064561 | J39: GMAX3265 | K39: M52/F/EF | L39: MONO/BAYXX8 | M39: =IF( OR((L39=U$5),(L39=U$6),(L39=U$7),(L39=U$8),(L39=U$9)), 8, 10) -> 8 | N39: 35 | O39: 65 | P39: 9800 | Q39: 7.5 | R39: 62.32329625 | S39: 39.91226076 | X39: 8 | Y39: 1600 | Z39: 155.7333333 | AA39: 1600 | AB39: 1600 | AC39: 12 | AD39: =IF(OR(G39=$U$13, G39=$U$14), FLOOR(IF(AB39 > Y39/100, 150000000/(AB39*(D39+AC39)), (150000000/(Y39*(D39+AC39)))),1), FLOOR(IF(AB39 > Y39/100, 400000000/(AB39*(D39+AC39)), (400000000/(Y39*(D39+AC39)))),1)) -> 35 | AE39: 35 | AF39: 18.31424 | AG39: 9344 | AH39: 7000
A40: Bolt | B40: HB-65000G-C | C40: 9344 | D40: 7000 | E40: 65.408 | F40: Color | G40: 25GigE-SFP28 | H40: 3.2 | I40: 37.36064561 | J40: GMAX3265 | K40: M52/F/EF | L40: MONO/BAYXX8 | M40: 8 | N40: 35 | O40: 60 | P40: 9800 | Q40: 7.5 | R40: 62.32329625 | S40: 39.91226076 | X40: 8 | Y40: 1600 | Z40: 155.7333333 | AA40: 1600 | AB40: 1600 | AC40: 12 | AD40: 35 | AE40: 35 | AF40: 18.31424 | AG40: 9344 | AH40: 7000
A41: Bolt | B41: HB-25000G-M | C41: 5120 | D41: 5120 | E41: 26.2144 | F41: Mono | G41: 25GigE-SFP28 | H41: 2.5 | I41: 18.1019336 | J41: GMAX0505 | K41: C-Mount | L41: MONO/BAYXX8 | M41: 8 | N41: 74 | O41: 65 | P41: 4000 | Q41: 3.4 | R41: 61.41162149 | S41: 36.02059991 | X41: 8 | Y41: =IF( OR((L41=U$5),(L41=U$6),(L41=U$7),(L41=U$8),(L41=U$9)), 1034, 1034) -> 1034 | Z41: 85.33333333 | AA41: 1034 | AB41: 1034 | AC41: 70 | AD41: 74 | AE41: 74 | AF41: 15.5189248 | AG41: 5120 | AH41: 5120
A42: Bolt | B42: HB-25000G-C | C42: 5120 | D42: 5120 | E42: 26.2144 | F42: Color | G42: 25GigE-SFP28 | H42: 2.5 | I42: 18.1019336 | J42: GMAX0505 | K42: C-Mount | L42: MONO/BAYXX8 | M42: 8 | N42: 74 | O42: 60 | P42: 4000 | Q42: 3.4 | R42: 61.41162149 | S42: 36.02059991 | X42: 8 | Y42: =IF( OR((L42=U$5),(L42=U$6),(L42=U$7),(L42=U$8),(L42=U$9)), 1034, 1034) -> 1034 | Z42: 85.33333333 | AA42: 1034 | AB42: 1034 | AC42: 70 | AD42: 74 | AE42: 74 | AF42: 15.5189248 | AG42: 5120 | AH42: 5120
A43: Bolt | B43: HB-9000G-M | C43: 4200 | D43: 2160 | E43: 9.072 | F43: Mono | G43: 25GigE-SFP28 | H43: 2.5 | I43: 11.80720119 | J43: GMAX2509 | K43: C-Mount | L43: MONO/BAYXX8 | M43: 8 | N43: 287 | O43: 65 | P43: 5000 | Q43: 3.9 | R43: 62.15810795 | S43: 36.98970004 | X43: 8 | Y43: =IF( OR((L43=U$5),(L43=U$6),(L43=U$7),(L43=U$8),(L43=U$9)), 634, 634) -> 634 | Z43: =IF(OR(G43=$U$13, G43=$U$14),C43*150/9300, C43*400/24000) -> 70 | AA43: 634 | AB43: 634 | AC43: 33 | AD43: 287 | AE43: 287 | AF43: 20.829312 | AG43: 4200 | AH43: 2160
A44: Bolt | B44: HB-9000G-C | C44: 4200 | D44: 2160 | E44: 9.072 | F44: Color | G44: 25GigE-SFP28 | H44: 2.5 | I44: 11.80720119 | J44: GMAX2509 | K44: C-Mount | L44: MONO/BAYXX8 | M44: 8 | N44: 287 | O44: 60 | P44: 5000 | Q44: 3.9 | R44: 62.15810795 | S44: 36.98970004 | X44: 8 | Y44: =IF( OR((L44=U$5),(L44=U$6),(L44=U$7),(L44=U$8),(L44=U$9)), 634, 634) -> 634 | Z44: 70 | AA44: 634 | AB44: 634 | AC44: 33 | AD44: 287 | AE44: 287 | AF44: 20.829312 | AG44: 4200 | AH44: 2160
A45: Bolt | B45: HB-5000G-M | C45: 2600 | D45: 2160 | E45: 5.616 | F45: Mono | G45: 25GigE-SFP28 | H45: 2.5 | I45: 8.450443775 | J45: GMAX2505 | K45: C-Mount | L45: MONO/BAYXX8 | M45: 8 | N45: 289 | O45: 65 | P45: 5000 | Q45: 3.9 | R45: 62.15810795 | S45: 36.98970004 | X45: 8 | Y45: =IF( OR((L45=U$5),(L45=U$6),(L45=U$7),(L45=U$8),(L45=U$9)), 634, 634) -> 634 | Z45: 43.33333333 | AA45: 634 | AB45: 634 | AC45: 20 | AD45: 289 | AE45: 289 | AF45: 12.984192 | AG45: 2600 | AH45: 2160
A46: Bolt | B46: HB-5000G-C | C46: 2600 | D46: 2160 | E46: 5.616 | F46: Color | G46: 25GigE-SFP28 | H46: 2.5 | I46: 8.450443775 | J46: GMAX2505 | K46: C-Mount | L46: MONO/BAYXX8 | M46: 8 | N46: 289 | O46: 60 | P46: 5000 | Q46: 3.9 | R46: 62.15810795 | S46: 36.98970004 | X46: 8 | Y46: =IF( OR((L46=U$5),(L46=U$6),(L46=U$7),(L46=U$8),(L46=U$9)), 634, 634) -> 634 | Z46: 43.33333333 | AA46: 634 | AB46: 634 | AC46: 20 | AD46: 289 | AE46: 289 | AF46: 12.984192 | AG46: 2600 | AH46: 2160
A47: Bolt | B47: HB-50000-M | C47: 7920 | D47: 6004 | E47: 47.55168 | F47: Mono | G47: 25GigE-SFP28 | H47: 4.6 | I47: 45.71724666 | J47: CMV50000 | K47: M52/F/EF | L47: MONO/BAYXX8 | M47: 8 | N47: 30 | O47: 60 | P47: 14500 | Q47: 8.8 | R47: 64.3377066 | S47: 41.61368002 | X47: 8 | Y47: =IF( OR((L47=U$5),(L47=U$6),(L47=U$7),(L47=U$8),(L47=U$9)), 2159, 2159) -> 2159 | Z47: 132 | AA47: 2159 | AB47: 2159 | AC47: 150 | AD47: 30 | AE47: 30 | AF47: 11.4124032 | AG47: 7920 | AH47: 6004
A48: Bolt | B48: HB-50000-C | C48: 7920 | D48: 6004 | E48: 47.55168 | F48: Color | G48: 25GigE-SFP28 | H48: 4.6 | I48: 45.71724666 | J48: CMV50000 | K48: M52/F/EF | L48: MONO/BAYXX8 | M48: 8 | N48: 30 | O48: 55 | P48: 14500 | Q48: 8.8 | R48: 64.3377066 | S48: =20*LOG10(SQRT(P48)) -> 41.61368002 | X48: 8 | Y48: =IF( OR((L48=U$5),(L48=U$6),(L48=U$7),(L48=U$8),(L48=U$9)), 2159, 2159) -> 2159 | Z48: 132 | AA48: 2159 | AB48: 2159 | AC48: 150 | AD48: 30 | AE48: 30 | AF48: 11.4124032 | AG48: 7920 | AH48: 6004
A49: HR | B49: HR-12000S-M | C49: 4096 | D49: 3000 | E49: 12.288 | F49: Mono | G49: 10GigE-SFP+ | H49: 3.45 | I49: 17.51608728 | J49: IMX253 | K49: C-Mount | L49: MONO/BAYXX8 | M49: =IF( OR((L49=U$5),(L49=U$6),(L49=U$7),(L49=U$8),(L49=U$9)), 8, 12) -> 8 | N49: 80 | O49: 68 | P49: =IF( OR((L49=U$5),(L49=U$6),(L49=U$7),(L49=U$8),(L49=U$9)), 11000/4, 11000) -> 2750 | Q49: 2 | R49: =IF(20*LOG10(P49/Q49)<72, 20*LOG10(P49/Q49), 72) -> 62.76605396 | S49: =20*LOG10(SQRT(P49)) -> 34.39332694 | X49: 8 | Y49: =IF( OR((L49=U$5),(L49=U$6),(L49=U$7),(L49=U$8),(L49=U$9)), 610, 1054) -> 610 | Z49: 66.06451613 | AA49: 610 | AB49: 610 | AC49: 63 | AD49: 80 | AE49: 80 | AF49: 7.86432 | AG49: 4096 | AH49: 3000
A50: HR | B50: HR-12000S-C | C50: 4096 | D50: 3000 | E50: 12.288 | F50: Color | G50: 10GigE-SFP+ | H50: 3.45 | I50: 17.51608728 | J50: IMX253 | K50: C-Mount | L50: MONO/BAYXX8 | M50: 8 | N50: 80 | O50: 63 | P50: 2750 | Q50: 2 | R50: 62.76605396 | S50: 34.39332694 | X50: 8 | Y50: =IF( OR((L50=U$5),(L50=U$6),(L50=U$7),(L50=U$8),(L50=U$9)), 610, 1054) -> 610 | Z50: 66.06451613 | AA50: 610 | AB50: 610 | AC50: 63 | AD50: 80 | AE50: 80 | AF50: 7.86432 | AG50: 4096 | AH50: 3000
A51: HR | B51: HR-8000S-M | C51: 4096 | D51: 2160 | E51: 8.84736 | F51: Mono | G51: 10GigE-SFP+ | H51: 3.45 | I51: 15.97570397 | J51: IMX255 | K51: C-Mount | L51: MONO/BAYXX8 | M51: 8 | N51: 110 | O51: 68 | P51: 2750 | Q51: 2 | R51: 62.76605396 | S51: 34.39332694 | X51: 8 | Y51: =IF( OR((L51=U$5),(L51=U$6),(L51=U$7),(L51=U$8),(L51=U$9)), 610, 1054) -> 610 | Z51: 66.06451613 | AA51: 610 | AB51: 610 | AC51: 71 | AD51: 110 | AE51: 110 | AF51: 7.7856768 | AG51: 4096 | AH51: 2160
A52: HR | B52: HR-8000S-C | C52: 4096 | D52: 2160 | E52: 8.84736 | F52: Color | G52: 10GigE-SFP+ | H52: 3.45 | I52: 15.97570397 | J52: IMX255 | K52: C-Mount | L52: MONO/BAYXX8 | M52: 8 | N52: 110 | O52: 63 | P52: 2750 | Q52: 2 | R52: 62.76605396 | S52: 34.39332694 | X52: 8 | Y52: =IF( OR((L52=U$5),(L52=U$6),(L52=U$7),(L52=U$8),(L52=U$9)), 610, 1054) -> 610 | Z52: 66.06451613 | AA52: 610 | AB52: 610 | AC52: 71 | AD52: 110 | AE52: 110 | AF52: 7.7856768 | AG52: 4096 | AH52: 2160
A53: HR | B53: HR-5000S-M | C53: 2448 | D53: 2048 | E53: 5.013504 | F53: Mono | G53: 10GigE-SFP+ | H53: 3.45 | I53: 11.01139695 | J53: IMX250 | K53: C-Mount | L53: MONO/BAYXX8 | M53: 8 | N53: 163 | O53: 68 | P53: 2750 | Q53: 2 | R53: 62.76605396 | S53: 34.39332694 | X53: 8 | Y53: =IF( OR((L53=U$5),(L53=U$6),(L53=U$7),(L53=U$8),(L53=U$9)), 438, 800) -> 438 | Z53: 39.48387097 | AA53: 438 | AB53: 438 | AC53: 47 | AD53: 163 | AE53: 163 | AF53: 6.537609216 | AG53: 2448 | AH53: 2048
A54: HR | B54: HR-5000S-C | C54: 2448 | D54: 2048 | E54: 5.013504 | F54: Color | G54: 10GigE-SFP+ | H54: 3.45 | I54: 11.01139695 | J54: IMX250 | K54: C-Mount | L54: MONO/BAYXX8 | M54: 8 | N54: 163 | O54: 63 | P54: 2750 | Q54: 2 | R54: 62.76605396 | S54: 34.39332694 | X54: 8 | Y54: =IF( OR((L54=U$5),(L54=U$6),(L54=U$7),(L54=U$8),(L54=U$9)), 438, 800) -> 438 | Z54: 39.48387097 | AA54: 438 | AB54: 438 | AC54: 47 | AD54: 163 | AE54: 163 | AF54: 6.537609216 | AG54: 2448 | AH54: 2048
A55: HR | B55: HR-3000S-M | C55: 2048 | D55: 1536 | E55: 3.145728 | F55: Mono | G55: 10GigE-SFP+ | H55: 3.45 | I55: 8.832 | J55: IMX252 | K55: C-Mount | L55: MONO/BAYXX8 | M55: 8 | N55: 216 | O55: 68 | P55: 2750 | Q55: 2 | R55: 62.76605396 | S55: 34.39332694 | X55: 8 | Y55: =IF( OR((L55=U$5),(L55=U$6),(L55=U$7),(L55=U$8),(L55=U$9)), 438, 800) -> 438 | Z55: 33.03225806 | AA55: 438 | AB55: 438 | AC55: 47 | AD55: 216 | AE55: 216 | AF55: 5.435817984 | AG55: 2048 | AH55: 1536
A56: HR | B56: HR-3000S-C | C56: 2048 | D56: 1536 | E56: 3.145728 | F56: Color | G56: 10GigE-SFP+ | H56: 3.45 | I56: 8.832 | J56: IMX252 | K56: C-Mount | L56: MONO/BAYXX8 | M56: 8 | N56: 216 | O56: 63 | P56: 2750 | Q56: 2 | R56: 62.76605396 | S56: 34.39332694 | X56: 8 | Y56: =IF( OR((L56=U$5),(L56=U$6),(L56=U$7),(L56=U$8),(L56=U$9)), 438, 800) -> 438 | Z56: 33.03225806 | AA56: 438 | AB56: 438 | AC56: 47 | AD56: 216 | AE56: 216 | AF56: 5.435817984 | AG56: 2048 | AH56: 1536
A57: HR | B57: HR-12000SP-M | C57: 4096 | D57: 3000 | E57: =(C57*D57)/1000000 -> 12.288 | F57: Mono | G57: 10GigE-SFP+ | H57: 3.45 | I57: =SQRT(C57^2+D57^2)*H57*0.001 -> 17.51608728 | J57: IMX253 | K57: C-Mount | L57: MONO/BAYXX8 | M57: 8 | N57: =AE57 -> 80 | O57: 68 | P57: 2750 | Q57: 2 | R57: =IF(20*LOG10(P57/Q57)<72, 20*LOG10(P57/Q57), 72) -> 62.76605396 | S57: =20*LOG10(SQRT(P57)) -> 34.39332694 | X57: 8 | Y57: =IF( OR((L57=U$5),(L57=U$6),(L57=U$7),(L57=U$8),(L57=U$9)), 610, 1054) -> 610 | Z57: 66.06451613 | AA57: 610 | AB57: =IF(AA57 > Y57, AA57, Y57) -> 610 | AC57: 63 | AD57: 80 | AE57: =FLOOR(IF((10 > (1000000/AD57)-AC57), (1000000/(AC57+10)), AD57),1) -> 80 | AF57: =AE57*C57*D57*X57/1000000000 -> 7.86432 | AG57: 4096 | AH57: 3000
A58: HR | B58: HR-12000SP-C | C58: 4096 | D58: 3000 | E58: 12.288 | F58: Color | G58: 10GigE-SFP+ | H58: 3.45 | I58: 17.51608728 | J58: IMX253 | K58: C-Mount | L58: MONO/BAYXX8 | M58: 8 | N58: 80 | O58: 63 | P58: 2750 | Q58: 2 | R58: 62.76605396 | S58: 34.39332694 | X58: 8 | Y58: =IF( OR((L58=U$5),(L58=U$6),(L58=U$7),(L58=U$8),(L58=U$9)), 610, 1054) -> 610 | Z58: 66.06451613 | AA58: 610 | AB58: 610 | AC58: 63 | AD58: 80 | AE58: 80 | AF58: 7.86432 | AG58: 4096 | AH58: 3000
A59: HR | B59: HR-5000SP-M | C59: 2448 | D59: 2048 | E59: 5.013504 | F59: Mono | G59: 10GigE-SFP+ | H59: 3.45 | I59: 11.01139695 | J59: IMX250 | K59: C-Mount | L59: MONO/BAYXX8 | M59: 8 | N59: 163 | O59: 68 | P59: 2750 | Q59: 2 | R59: 62.76605396 | S59: 34.39332694 | X59: 8 | Y59: =IF( OR((L59=U$5),(L59=U$6),(L59=U$7),(L59=U$8),(L59=U$9)), 438, 800) -> 438 | Z59: 39.48387097 | AA59: 438 | AB59: 438 | AC59: 47 | AD59: 163 | AE59: 163 | AF59: 6.537609216 | AG59: 2448 | AH59: 2048
A60: HR | B60: HR-5000SP-C | C60: 2448 | D60: 2048 | E60: 5.013504 | F60: Color | G60: 10GigE-SFP+ | H60: 3.45 | I60: 11.01139695 | J60: IMX250 | K60: C-Mount | L60: MONO/BAYXX8 | M60: 8 | N60: 163 | O60: 63 | P60: 2750 | Q60: 2 | R60: 62.76605396 | S60: 34.39332694 | X60: 8 | Y60: =IF( OR((L60=U$5),(L60=U$6),(L60=U$7),(L60=U$8),(L60=U$9)), 438, 800) -> 438 | Z60: 39.48387097 | AA60: 438 | AB60: 438 | AC60: 47 | AD60: 163 | AE60: 163 | AF60: 6.537609216 | AG60: 2448 | AH60: 2048
A61: HR | B61: HR-2000M | C61: 2048 | D61: 1088 | E61: 2.228224 | F61: Mono | G61: 10GigE-SFP+ | H61: 5.5 | I61: 12.75484034 | J61: CMV2000 | K61: C-Mount | L61: MONO/BAYXX8 | M61: =IF( OR((L61=U$5),(L61=U$6),(L61=U$7),(L61=U$8),(L61=U$9)), 8, 10) -> 8 | N61: 338 | O61: 62 | P61: 13500 | Q61: 13 | R61: 60.32780832 | S61: 41.30333768 | X61: 8 | Y61: 403 | Z61: 33.03225806 | AA61: 403 | AB61: 403 | AC61: 10 | AD61: 338 | AE61: 338 | AF61: 6.025117696 | AG61: 2048 | AH61: 1088
A62: HR | B62: HR-2000C | C62: 2048 | D62: 1088 | E62: 2.228224 | F62: Color | G62: 10GigE-SFP+ | H62: 5.5 | I62: 12.75484034 | J62: CMV2000 | K62: C-Mount | L62: MONO/BAYXX8 | M62: 8 | N62: 338 | O62: 48 | P62: 13500 | Q62: 13 | R62: 60.32780832 | S62: 41.30333768 | X62: 8 | Y62: 403 | Z62: 33.03225806 | AA62: 403 | AB62: 403 | AC62: 10 | AD62: 338 | AE62: 338 | AF62: 6.025117696 | AG62: 2048 | AH62: 1088
A63: HR | B63: HR-2000N | C63: 2048 | D63: 1088 | E63: 2.228224 | F63: Mono | G63: 10GigE-SFP+ | H63: 5.5 | I63: 12.75484034 | J63: CMV2000 | K63: C-Mount | L63: MONO/BAYXX8 | M63: 8 | N63: 338 | O63: 62 | P63: 13500 | Q63: 13 | R63: 60.32780832 | S63: 41.30333768 | X63: 8 | Y63: 403 | Z63: 33.03225806 | AA63: 403 | AB63: 403 | AC63: 10 | AD63: 338 | AE63: 338 | AF63: 6.025117696 | AG63: 2048 | AH63: 1088
A64: HR | B64: HR-4000M | C64: 2048 | D64: 2048 | E64: 4.194304 | F64: Color | G64: 10GigE-SFP+ | H64: 5.5 | I64: 15.92970157 | J64: CMV4000 | K64: C-Mount | L64: MONO/BAYXX8 | M64: 8 | N64: 179 | O64: 62 | P64: 13500 | Q64: 13 | R64: 60.32780832 | S64: 41.30333768 | X64: 8 | Y64: 403 | Z64: 33.03225806 | AA64: 403 | AB64: 403 | AC64: 30 | AD64: 179 | AE64: 179 | AF64: 6.006243328 | AG64: 2048 | AH64: 2048
A65: HR | B65: HR-4000C | C65: 2048 | D65: 2048 | E65: 4.194304 | F65: Mono | G65: 10GigE-SFP+ | H65: 5.5 | I65: 15.92970157 | J65: CMV4000 | K65: C-Mount | L65: MONO/BAYXX8 | M65: 8 | N65: 179 | O65: 48 | P65: 13500 | Q65: 13 | R65: 60.32780832 | S65: 41.30333768 | X65: 8 | Y65: 403 | Z65: 33.03225806 | AA65: 403 | AB65: 403 | AC65: 30 | AD65: 179 | AE65: 179 | AF65: 6.006243328 | AG65: 2048 | AH65: 2048
A66: HR | B66: HR-4000N | C66: 2048 | D66: 2048 | E66: 4.194304 | F66: Color | G66: 10GigE-SFP+ | H66: 5.5 | I66: 15.92970157 | J66: CMV4000 | K66: C-Mount | L66: MONO/BAYXX8 | M66: 8 | N66: 179 | O66: 62 | P66: 13500 | Q66: 13 | R66: 60.32780832 | S66: 41.30333768 | X66: 8 | Y66: 403 | Z66: 33.03225806 | AA66: 403 | AB66: 403 | AC66: 30 | AD66: 179 | AE66: 179 | AF66: 6.006243328 | AG66: 2048 | AH66: 2048
A67: HR | B67: HR-12000M | C67: 4096 | D67: 3072 | E67: 12.582912 | F67: Mono | G67: 10GigE-SFP+ | H67: 5.5 | I67: 28.16 | J67: CMV12000 | K67: M42 | L67: MONO/BAYXX8 | M67: 8 | N67: 84 | O67: 62 | P67: 13500 | Q67: 13 | R67: 60.32780832 | S67: 41.30333768 | X67: 8 | Y67: =IF( OR((L67=U$5),(L67=U$6),(L67=U$7),(L67=U$8),(L67=U$9)), 574, 717) -> 574 | Z67: 66.06451613 | AA67: 574 | AB67: 574 | AC67: 30 | AD67: 84 | AE67: 84 | AF67: 8.455716864 | AG67: 4096 | AH67: 3072
A68: HR | B68: HR-12000C | C68: 4096 | D68: 3072 | E68: 12.582912 | F68: Color | G68: 10GigE-SFP+ | H68: 5.5 | I68: 28.16 | J68: CMV12000 | K68: M42 | L68: MONO/BAYXX8 | M68: 8 | N68: 84 | O68: 48 | P68: 13500 | Q68: 13 | R68: 60.32780832 | S68: 41.30333768 | X68: 8 | Y68: =IF( OR((L68=U$5),(L68=U$6),(L68=U$7),(L68=U$8),(L68=U$9)), 574, 717) -> 574 | Z68: 66.06451613 | AA68: 574 | AB68: 574 | AC68: 30 | AD68: 84 | AE68: 84 | AF68: 8.455716864 | AG68: 4096 | AH68: 3072
A69: HR | B69: HR-20000M | C69: 5120 | D69: 3840 | E69: 19.6608 | F69: Mono | G69: 10GigE-SFP+ | H69: 6.4 | I69: 40.96 | J69: CMV20000 | K69: M52/F/EF | L69: MONO/BAYXX8 | M69: 8 | N69: 32 | O69: 62 | P69: 15000 | Q69: 8 | R69: 65.46002544 | S69: 41.76091259 | X69: =IF( OR((L69= U$8), (L69 = U$10)), 16, IF(OR((L69 = U$6), (L69 = U$9)), 24, IF((L69 = U$5), 8, 12) )) -> 8 | Y69: 1202 | Z69: 82.58064516 | AA69: =FLOOR( IF(OR((L69= U$8),(L69= U$10)), Z69*16, IF(OR((L69 = U$6), (L69 = U$9)), Z69*24, IF((L69 = U$5),Y69, Z69*12)) ),1) -> 1202 | AB69: 1202 | AC69: 50 | AD69: 32 | AE69: 32 | AF69: 5.0331648 | AG69: 5120 | AH69: 3840
A70: HR | B70: HR-20000C | C70: 5120 | D70: 3840 | E70: 19.6608 | F70: Color | G70: 10GigE-SFP+ | H70: 6.4 | I70: 40.96 | J70: CMV20000 | K70: M52/F/EF | L70: MONO/BAYXX8 | M70: 8 | N70: 32 | O70: 48 | P70: 15000 | Q70: 8 | R70: 65.46002544 | S70: 41.76091259 | X70: 8 | Y70: 1202 | Z70: 82.58064516 | AA70: 1202 | AB70: 1202 | AC70: 50 | AD70: 32 | AE70: 32 | AF70: 5.0331648 | AG70: 5120 | AH70: 3840
A71: HR | B71: HR-50000M | C71: 7920 | D71: 6004 | E71: 47.55168 | F71: Mono | G71: 10GigE-SFP+ | H71: 4.6 | I71: 45.71724666 | J71: CMV50000 | K71: M52/F/EF | L71: MONO/BAYXX8 | M71: =IF( OR((L71=U$5),(L71=U$6),(L71=U$7),(L71=U$8),(L71=U$9)), 8, 12) -> 8 | N71: 23 | O71: 61 | P71: 14500 | Q71: 8.8 | R71: 64.3377066 | S71: 41.61368002 | X71: 8 | Y71: 1043 | Z71: 127.7419355 | AA71: 1043 | AB71: 1043 | AC71: 150 | AD71: =IF(OR(G71=$U$13, G71=$U$14), FLOOR(IF(AB71 > Y71/100, 150000000/(AB71*(D71+AC71)), (150000000/(Y71*(D71+AC71)))),1), FLOOR(IF(AB71 > Y71/100, 400000000/(AB71*(D71+AC71)), (400000000/(Y71*(D71+AC71)))),1)) -> 23 | AE71: 23 | AF71: 8.74950912 | AG71: 7920 | AH71: 6004
A72: HR | B72: HR-50000C | C72: 7920 | D72: 6004 | E72: 47.55168 | F72: Color | G72: 10GigE-SFP+ | H72: 4.6 | I72: 45.71724666 | J72: CMV50000 | K72: M52/F/EF | L72: MONO/BAYXX8 | M72: 8 | N72: 23 | O72: 55 | P72: 14500 | Q72: 8.8 | R72: 64.3377066 | S72: 41.61368002 | X72: 8 | Y72: 1043 | Z72: 127.7419355 | AA72: 1043 | AB72: 1043 | AC72: 150 | AD72: 23 | AE72: 23 | AF72: 8.74950912 | AG72: 7920 | AH72: 6004
A73: HR | B73: HR-25000SB-M | C73: 5320 | D73: 4600 | E73: 24.472 | F73: Mono | G73: 10GigE-SFP+ | H73: 2.74 | I73: 19.27028579 | J73: IMX530 | K73: C-Mount | L73: MONO/BAYXX8 | M73: 8 | N73: 51 | O73: 78 | P73: =IF( OR((L73=U$5),(L73=U$6),(L73=U$7),(L73=U$8),(L73=U$9)), 9500/4, 9500) -> 2375 | Q73: 2 | R73: =IF(20*LOG10(P73/Q73)<72, 20*LOG10(P73/Q73), 72) -> 61.49267237 | S73: =20*LOG10(SQRT(P73)) -> 33.75663614 | X73: 8 | Y73: =IF( OR((L73=U$5),(L73=U$6),(L73=U$7),(L73=U$8),(L73=U$9)), 600, 1029) -> 600 | Z73: 85.80645161 | AA73: 600 | AB73: =IF(AA73 > Y73, AA73, Y73) -> 600 | AC73: 240 | AD73: 51 | AE73: 51 | AF73: 9.984576 | AG73: 5320 | AH73: 4600
A74: HR | B74: HR-25000SB-C | C74: 5320 | D74: 4600 | E74: 24.472 | F74: Color | G74: 10GigE-SFP+ | H74: 2.74 | I74: 19.27028579 | J74: IMX530 | K74: C-Mount | L74: MONO/BAYXX8 | M74: 8 | N74: 51 | O74: 72 | P74: 2375 | Q74: 2 | R74: =IF(20*LOG10(P74/Q74)<72, 20*LOG10(P74/Q74), 72) -> 61.49267237 | S74: =20*LOG10(SQRT(P74)) -> 33.75663614 | X74: 8 | Y74: =IF( OR((L74=U$5),(L74=U$6),(L74=U$7),(L74=U$8),(L74=U$9)), 600, 1029) -> 600 | Z74: 85.80645161 | AA74: 600 | AB74: =IF(AA74 > Y74, AA74, Y74) -> 600 | AC74: 240 | AD74: 51 | AE74: 51 | AF74: 9.984576 | AG74: 5320 | AH74: 4600
A75: HR | B75: HR-20000SB-M | C75: 4504 | D75: 4504 | E75: 20.286016 | F75: Mono | G75: 10GigE-SFP+ | H75: 2.74 | I75: =SQRT(C75^2+D75^2)*H75*0.001 -> 17.452753 | J75: IMX531 | K75: C-Mount | L75: MONO/BAYXX8 | M75: 8 | N75: 61 | O75: 78 | P75: 2375 | Q75: 2 | R75: 61.49267237 | S75: 33.75663614 | X75: 8 | Y75: =IF( OR((L75=U$5),(L75=U$6),(L75=U$7),(L75=U$8),(L75=U$9)), 510, 871) -> 510 | Z75: =IF(OR(G75=$U$13, G75=$U$14),C75*150/9300, C75*400/24000) -> 72.64516129 | AA75: 510 | AB75: 510 | AC75: 240 | AD75: 61 | AE75: 61 | AF75: 9.899575808 | AG75: 4504 | AH75: 4504
A76: HR | B76: HR-20000SB-C | C76: 4504 | D76: 4504 | E76: =(C76*D76)/1000000 -> 20.286016 | F76: Color | G76: 10GigE-SFP+ | H76: 2.74 | I76: 17.452753 | J76: IMX531 | K76: C-Mount | L76: MONO/BAYXX8 | M76: 8 | N76: =AE76 -> 61 | O76: 72 | P76: 2375 | Q76: 2 | R76: 61.49267237 | S76: 33.75663614 | X76: 8 | Y76: =IF( OR((L76=U$5),(L76=U$6),(L76=U$7),(L76=U$8),(L76=U$9)), 510, 871) -> 510 | Z76: 72.64516129 | AA76: 510 | AB76: 510 | AC76: 240 | AD76: 61 | AE76: 61 | AF76: 9.899575808 | AG76: 4504 | AH76: 4504
A77: HR | B77: HR-16000SB-M | C77: 5320 | D77: 3032 | E77: 16.13024 | F77: Mono | G77: 10GigE-SFP+ | H77: 2.74 | I77: 16.77798096 | J77: IMX532 | K77: C-Mount | L77: MONO/BAYXX8 | M77: 8 | N77: 77 | O77: 78 | P77: 2375 | Q77: 2 | R77: 61.49267237 | S77: 33.75663614 | X77: 8 | Y77: =IF( OR((L77=U$5),(L77=U$6),(L77=U$7),(L77=U$8),(L77=U$9)), 588, 1029) -> 588 | Z77: 85.80645161 | AA77: 588 | AB77: 588 | AC77: 240 | AD77: 77 | AE77: 77 | AF77: 9.93622784 | AG77: 5320 | AH77: 3032
A78: HR | B78: HR-16000SB-C | C78: 5320 | D78: 3032 | E78: 16.13024 | F78: Color | G78: 10GigE-SFP+ | H78: 2.74 | I78: 16.77798096 | J78: IMX532 | K78: C-Mount | L78: MONO/BAYXX8 | M78: 8 | N78: 77 | O78: 72 | P78: 2375 | Q78: 2 | R78: 61.49267237 | S78: 33.75663614 | X78: 8 | Y78: =IF( OR((L78=U$5),(L78=U$6),(L78=U$7),(L78=U$8),(L78=U$9)), 588, 1029) -> 588 | Z78: 85.80645161 | AA78: 588 | AB78: 588 | AC78: 240 | AD78: 77 | AE78: 77 | AF78: 9.93622784 | AG78: 5320 | AH78: 3032
A79: HR | B79: HR-12000SB-M | C79: 4096 | D79: 3000 | E79: 12.288 | F79: Mono | G79: 10GigE-SFP+ | H79: 2.74 | I79: 13.91132729 | J79: IMX535 | K79: C-Mount | L79: MONO/BAYXX8 | M79: 8 | N79: 102 | O79: 78 | P79: 2375 | Q79: 2 | R79: 61.49267237 | S79: 33.75663614 | X79: 8 | Y79: =IF( OR((L79=U$5),(L79=U$6),(L79=U$7),(L79=U$8),(L79=U$9)), 450, 792) -> 450 | Z79: 66.06451613 | AA79: 450 | AB79: 450 | AC79: 240 | AD79: 102 | AE79: 102 | AF79: 10.027008 | AG79: 4096 | AH79: 3000
A80: HR | B80: HR-12000SB-C | C80: 4096 | D80: 3000 | E80: 12.288 | F80: Color | G80: 10GigE-SFP+ | H80: 2.74 | I80: 13.91132729 | J80: IMX535 | K80: C-Mount | L80: MONO/BAYXX8 | M80: 8 | N80: 102 | O80: 72 | P80: 2375 | Q80: 2 | R80: 61.49267237 | S80: 33.75663614 | X80: 8 | Y80: =IF( OR((L80=U$5),(L80=U$6),(L80=U$7),(L80=U$8),(L80=U$9)), 450, 792) -> 450 | Z80: 66.06451613 | AA80: 450 | AB80: 450 | AC80: 240 | AD80: 102 | AE80: 102 | AF80: 10.027008 | AG80: 4096 | AH80: 3000
A81: HR | B81: HR-8000SB-M | C81: 2840 | D81: 2840 | E81: 8.0656 | F81: Mono | G81: 10GigE-SFP+ | H81: 2.74 | I81: 11.00484426 | J81: IMX536 | K81: C-Mount | L81: MONO/BAYXX8 | M81: 8 | N81: 154 | O81: 78 | P81: 2375 | Q81: 2 | R81: 61.49267237 | S81: 33.75663614 | X81: 8 | Y81: =IF( OR((L81=U$5),(L81=U$6),(L81=U$7),(L81=U$8),(L81=U$9)), 315, 549) -> 315 | Z81: 45.80645161 | AA81: 315 | AB81: 315 | AC81: 240 | AD81: 154 | AE81: 154 | AF81: =AE81*C81*D81*X81/1000000000 -> 9.9368192 | AG81: 2840 | AH81: 2840
A82: HR | B82: HR-8000SB-C | C82: 2840 | D82: 2840 | E82: 8.0656 | F82: Color | G82: 10GigE-SFP+ | H82: 2.74 | I82: 11.00484426 | J82: IMX536 | K82: C-Mount | L82: MONO/BAYXX8 | M82: 8 | N82: 154 | O82: 72 | P82: 2375 | Q82: 2 | R82: 61.49267237 | S82: 33.75663614 | X82: 8 | Y82: =IF( OR((L82=U$5),(L82=U$6),(L82=U$7),(L82=U$8),(L82=U$9)), 315, 549) -> 315 | Z82: 45.80645161 | AA82: 315 | AB82: 315 | AC82: 240 | AD82: 154 | AE82: 154 | AF82: 9.9368192 | AG82: 2840 | AH82: 2840
A83: HR | B83: HR-5000SB-M | C83: 2448 | D83: 2048 | E83: 5.013504 | F83: Mono | G83: 10GigE-SFP+ | H83: 2.74 | I83: 8.745283372 | J83: IMX537 | K83: C-Mount | L83: MONO/BAYXX8 | M83: 8 | N83: 247 | O83: 78 | P83: 2375 | Q83: 2 | R83: 61.49267237 | S83: 33.75663614 | X83: 8 | Y83: =IF( OR((L83=U$5),(L83=U$6),(L83=U$7),(L83=U$8),(L83=U$9)), 265, 473) -> 265 | Z83: 39.48387097 | AA83: 265 | AB83: 265 | AC83: 240 | AD83: 247 | AE83: 247 | AF83: 9.906683904 | AG83: 2448 | AH83: 2048
A84: HR | B84: HR-5000SB-C | C84: 2448 | D84: 2048 | E84: 5.013504 | F84: Color | G84: 10GigE-SFP+ | H84: 2.74 | I84: 8.745283372 | J84: IMX537 | K84: C-Mount | L84: MONO/BAYXX8 | M84: 8 | N84: 247 | O84: 72 | P84: 2375 | Q84: 2 | R84: 61.49267237 | S84: 33.75663614 | X84: 8 | Y84: =IF( OR((L84=U$5),(L84=U$6),(L84=U$7),(L84=U$8),(L84=U$9)), 265, 473) -> 265 | Z84: 39.48387097 | AA84: 265 | AB84: 265 | AC84: 240 | AD84: 247 | AE84: 247 | AF84: 9.906683904 | AG84: 2448 | AH84: 2048
A85: HR | B85: HR-30000S-M | C85: 6464 | D85: 4852 | E85: 31.363328 | F85: Mono | G85: 10GigE-SFP+ | H85: 3.45 | I85: 27.88428219 | J85: IMX342 | K85: M52/F/EF | L85: MONO/BAYXX8 | M85: 8 | N85: 35 | O85: 68 | P85: =IF( OR((L85=U$5),(L85=U$6),(L85=U$7),(L85=U$8),(L85=U$9)), 11000/4, 11000) -> 2750 | Q85: 2 | R85: 62.76605396 | S85: 34.39332694 | X85: 8 | Y85: =IF( OR((L85=U$5),(L85=U$6),(L85=U$7),(L85=U$8),(L85=U$9)), 860, 1175) -> 860 | Z85: =IF(OR(G85=$U$13, G85=$U$14),C85*150/9900, C85*400/24000) -> 97.93939394 | AA85: 860 | AB85: 860 | AC85: 80 | AD85: 35 | AE85: =FLOOR(IF((10 > (1000000/AD85)-AC85), (1000000/(AC85+10)), AD85),1) -> 35 | AF85: 8.78173184 | AG85: 6464 | AH85: 4852
A86: HR | B86: HR-30000S-C | C86: 6464 | D86: 4852 | E86: 31.363328 | F86: Color | G86: 10GigE-SFP+ | H86: 3.45 | I86: 27.88428219 | J86: IMX342 | K86: M52/F/EF | L86: MONO/BAYXX8 | M86: 8 | N86: 35 | O86: 63 | P86: 2750 | Q86: 2 | R86: 62.76605396 | S86: 34.39332694 | X86: 8 | Y86: =IF( OR((L86=U$5),(L86=U$6),(L86=U$7),(L86=U$8),(L86=U$9)), 860, 1175) -> 860 | Z86: =IF(OR(G86=$U$13, G86=$U$14),C86*150/9900, C86*400/24000) -> 97.93939394 | AA86: 860 | AB86: 860 | AC86: 80 | AD86: 35 | AE86: 35 | AF86: 8.78173184 | AG86: 6464 | AH86: 4852
A87: HR | B87: HR-20000S-M | C87: 4416 | D87: 4428 | E87: 19.554048 | F87: Mono | G87: 10GigE-SFP+ | H87: 3.45 | I87: 21.57512055 | J87: IMX367 | K87: M52/F/EF | L87: MONO/BAYXX8 | M87: 8 | N87: 43 | O87: 68 | P87: 2750 | Q87: 2 | R87: 62.76605396 | S87: 34.39332694 | X87: 8 | Y87: =IF( OR((L87=U$5),(L87=U$6),(L87=U$7),(L87=U$8),(L87=U$9)), 770, 1175) -> 770 | Z87: =IF(OR(G87=$U$13, G87=$U$14),C87*150/9300, C87*400/24000) -> 71.22580645 | AA87: 770 | AB87: 770 | AC87: 80 | AD87: 43 | AE87: 43 | AF87: 6.726592512 | AG87: 4416 | AH87: 4428
A88: HR | B88: HR-20000S-C | C88: 4416 | D88: 4428 | E88: 19.554048 | F88: Color | G88: 10GigE-SFP+ | H88: 3.45 | I88: 21.57512055 | J88: IMX367 | K88: M52/F/EF | L88: MONO/BAYXX8 | M88: 8 | N88: 43 | O88: 63 | P88: 2750 | Q88: 2 | R88: 62.76605396 | S88: 34.39332694 | X88: 8 | Y88: =IF( OR((L88=U$5),(L88=U$6),(L88=U$7),(L88=U$8),(L88=U$9)), 770, 1175) -> 770 | Z88: =IF(OR(G88=$U$13, G88=$U$14),C88*150/9300, C88*400/24000) -> 71.22580645 | AA88: 770 | AB88: 770 | AC88: 80 | AD88: 43 | AE88: 43 | AF88: 6.726592512 | AG88: 4416 | AH88: 4428
A89: HR | B89: HR-17000S-M | C89: 5456 | D89: 3076 | E89: 16.782656 | F89: Mono | G89: 10GigE-SFP+ | H89: 3.45 | I89: 21.60860123 | J89: IMX387 | K89: M52/F/EF | L89: MONO/BAYXX8 | M89: 8 | N89: 61 | O89: 68 | P89: 2750 | Q89: 2 | R89: 62.76605396 | S89: 34.39332694 | X89: 8 | Y89: =IF( OR((L89=U$5),(L89=U$6),(L89=U$7),(L89=U$8),(L89=U$9)), 770, 1175) -> 770 | Z89: =IF(OR(G89=$U$13, G89=$U$14),C89*150/9300, C89*400/24000) -> 88 | AA89: 770 | AB89: 770 | AC89: 80 | AD89: 61 | AE89: 61 | AF89: 8.189936128 | AG89: 5456 | AH89: 3076
A90: HR | B90: HR-17000S-C | C90: 5456 | D90: 3076 | E90: 16.782656 | F90: Color | G90: 10GigE-SFP+ | H90: 3.45 | I90: 21.60860123 | J90: IMX387 | K90: M52/F/EF | L90: MONO/BAYXX8 | M90: 8 | N90: 61 | O90: 63 | P90: 2750 | Q90: 2 | R90: 62.76605396 | S90: 34.39332694 | X90: 8 | Y90: =IF( OR((L90=U$5),(L90=U$6),(L90=U$7),(L90=U$8),(L90=U$9)), 770, 1175) -> 770 | Z90: =IF(OR(G90=$U$13, G90=$U$14),C90*150/9300, C90*400/24000) -> 88 | AA90: 770 | AB90: 770 | AC90: 80 | AD90: 61 | AE90: 61 | AF90: 8.189936128 | AG90: 5456 | AH90: 3076
A91: HR | B91: HR-7000S-M | C91: 3208 | D91: 2200 | E91: 7.0576 | F91: Mono | G91: 10GigE-SFP+ | H91: 4.5 | I91: 17.50451645 | J91: IMX420 | K91: C-Mount | L91: MONO/BAYXX8 | M91: 8 | N91: 176 | O91: 74 | P91: =IF( OR((L91=U$5),(L91=U$6),(L91=U$7),(L91=U$8),(L91=U$9)), 25000/4, 25000) -> 6250 | Q91: 2.5 | R91: 67.95880017 | S91: 37.95880017 | X91: 8 | Y91: =IF( OR((L91=U$5),(L91=U$6),(L91=U$7),(L91=U$8),(L91=U$9)), 370, 485) -> 370 | Z91: =IF(OR(G91=$U$13, G91=$U$14),C91*150/9900, C91*400/24000) -> 48.60606061 | AA91: 370 | AB91: 370 | AC91: 92 | AD91: 176 | AE91: 176 | AF91: 9.9371008 | AG91: 3208 | AH91: 2200
A92: HR | B92: HR-7000S-C | C92: 3208 | D92: 2200 | E92: 7.0576 | F92: Color | G92: 10GigE-SFP+ | H92: 4.5 | I92: 17.50451645 | J92: IMX420 | K92: C-Mount | L92: MONO/BAYXX8 | M92: 8 | N92: 176 | O92: 69 | P92: 6250 | Q92: 2.5 | R92: 67.95880017 | S92: 37.95880017 | X92: 8 | Y92: =IF( OR((L92=U$5),(L92=U$6),(L92=U$7),(L92=U$8),(L92=U$9)), 370, 485) -> 370 | Z92: =IF(OR(G92=$U$13, G92=$U$14),C92*150/9900, C92*400/24000) -> 48.60606061 | AA92: 370 | AB92: 370 | AC92: 92 | AD92: 176 | AE92: 176 | AF92: 9.9371008 | AG92: 3208 | AH92: 2200
A93: HR | B93: HR-2800S-M | C93: 1936 | D93: 1464 | E93: 2.834304 | F93: Mono | G93: 10GigE-SFP+ | H93: 4.5 | I93: 10.92248543 | J93: IMX421 | K93: C-Mount | L93: MONO/BAYXX8 | M93: 8 | N93: 410 | O93: 74 | P93: 6250 | Q93: 2.5 | R93: 67.95880017 | S93: 37.95880017 | X93: 8 | Y93: =IF( OR((L93=U$5),(L93=U$6),(L93=U$7),(L93=U$8),(L93=U$9)), 234, 420) -> 234 | Z93: =IF(OR(G93=$U$13, G93=$U$14),C93*150/9300, C93*400/24000) -> 31.22580645 | AA93: 234 | AB93: 234 | AC93: 98 | AD93: 410 | AE93: 410 | AF93: 9.29651712 | AG93: 1936 | AH93: 1464
A94: HR | B94: HR-2800S-C | C94: 1936 | D94: 1464 | E94: 2.834304 | F94: Color | G94: 10GigE-SFP+ | H94: 4.5 | I94: 10.92248543 | J94: IMX421 | K94: C-Mount | L94: MONO/BAYXX8 | M94: 8 | N94: 410 | O94: 69 | P94: 6250 | Q94: 2.5 | R94: 67.95880017 | S94: 37.95880017 | X94: 8 | Y94: =IF( OR((L94=U$5),(L94=U$6),(L94=U$7),(L94=U$8),(L94=U$9)), 234, 420) -> 234 | Z94: =IF(OR(G94=$U$13, G94=$U$14),C94*150/9300, C94*400/24000) -> 31.22580645 | AA94: 234 | AB94: 234 | AC94: 98 | AD94: 410 | AE94: 410 | AF94: 9.29651712 | AG94: 1936 | AH94: 1464
A95: HR | B95: HR-2000S-M | C95: 1624 | D95: 1240 | E95: 2.01376 | F95: Mono | G95: 10GigE-SFP+ | H95: 4.5 | I95: 9.194741106 | J95: IMX422 | K95: C-Mount | L95: MONO/BAYXX8 | M95: 8 | N95: 485 | O95: 74 | P95: 6250 | Q95: 2.5 | R95: 67.95880017 | S95: 37.95880017 | X95: 8 | Y95: =IF( OR((L95=U$5),(L95=U$6),(L95=U$7),(L95=U$8),(L95=U$9)), 234, 420) -> 234 | Z95: =IF(OR(G95=$U$13, G95=$U$14),C95*150/9300, C95*400/24000) -> 26.19354839 | AA95: 234 | AB95: 234 | AC95: 80 | AD95: 485 | AE95: 485 | AF95: 7.8133888 | AG95: 1624 | AH95: 1240
A96: HR | B96: HR-2000S-C | C96: 1624 | D96: 1240 | E96: 2.01376 | F96: Color | G96: 10GigE-SFP+ | H96: 4.5 | I96: 9.194741106 | J96: IMX422 | K96: C-Mount | L96: MONO/BAYXX8 | M96: 8 | N96: 485 | O96: 69 | P96: 6250 | Q96: 2.5 | R96: 67.95880017 | S96: 37.95880017 | X96: 8 | Y96: =IF( OR((L96=U$5),(L96=U$6),(L96=U$7),(L96=U$8),(L96=U$9)), 234, 420) -> 234 | Z96: =IF(OR(G96=$U$13, G96=$U$14),C96*150/9300, C96*400/24000) -> 26.19354839 | AA96: 234 | AB96: 234 | AC96: 80 | AD96: 485 | AE96: 485 | AF96: 7.8133888 | AG96: 1624 | AH96: 1240
A97: HR | B97: HR-1800S-M | C97: 1604 | D97: 1100 | E97: 1.7644 | F97: Mono | G97: 10GigE-SFP+ | H97: 9 | I97: 17.50451645 | J97: IMX425 | K97: C-Mount | L97: MONO/BAYXX8 | M97: 8 | N97: 660 | O97: 74 | P97: =IF( OR((L97=U$5),(L97=U$6),(L97=U$7),(L97=U$8),(L97=U$9)), 100000/4, 100000) -> 25000 | Q97: 2.5 | R97: 72 | S97: 43.97940009 | X97: 8 | Y97: =IF( OR((L97=U$5),(L97=U$6),(L97=U$7),(L97=U$8),(L97=U$9)), 177, 246) -> 177 | Z97: =IF(OR(G97=$U$13, G97=$U$14),C97*150/9900, C97*400/24000) -> 24.3030303 | AA97: 177 | AB97: 177 | AC97: 184 | AD97: 660 | AE97: 660 | AF97: 9.316032 | AG97: 1604 | AH97: 1100
A98: HR | B98: HR-1800S-C | C98: 1604 | D98: 1100 | E98: 1.7644 | F98: Color | G98: 10GigE-SFP+ | H98: 9 | I98: 17.50451645 | J98: IMX425 | K98: C-Mount | L98: MONO/BAYXX8 | M98: 8 | N98: 660 | O98: 69 | P98: =IF( OR((L98=U$5),(L98=U$6),(L98=U$7),(L98=U$8),(L98=U$9)), 100000/4, 100000) -> 25000 | Q98: 2.5 | R98: 72 | S98: 43.97940009 | X98: 8 | Y98: =IF( OR((L98=U$5),(L98=U$6),(L98=U$7),(L98=U$8),(L98=U$9)), 177, 246) -> 177 | Z98: =IF(OR(G98=$U$13, G98=$U$14),C98*150/9900, C98*400/24000) -> 24.3030303 | AA98: 177 | AB98: 177 | AC98: 184 | AD98: 660 | AE98: 660 | AF98: 9.316032 | AG98: 1604 | AH98: 1100
A99: HR | B99: HR-500S-M | C99: 812 | D99: 620 | E99: 0.50344 | F99: Mono | G99: 10GigE-SFP+ | H99: 9 | I99: 9.194741106 | J99: IMX426 | K99: C-Mount | L99: MONO/BAYXX8 | M99: 8 | N99: 1586 | O99: 74 | P99: =IF( OR((L99=U$5),(L99=U$6),(L99=U$7),(L99=U$8),(L99=U$9)), 100000/4, 100000) -> 25000 | Q99: 2.5 | R99: 72 | S99: 43.97940009 | X99: 8 | Y99: =IF( OR((L99=U$5),(L99=U$6),(L99=U$7),(L99=U$8),(L99=U$9)), 122, 215) -> 122 | Z99: =IF(OR(G99=$U$13, G99=$U$14),C99*150/9300, C99*400/24000) -> 13.09677419 | AA99: 122 | AB99: 122 | AC99: 155 | AD99: 1586 | AE99: 1586 | AF99: 6.38764672 | AG99: 812 | AH99: 620
A100: HR | B100: HR-500S-C | C100: 812 | D100: 620 | E100: 0.50344 | F100: Color | G100: 10GigE-SFP+ | H100: 9 | I100: 9.194741106 | J100: IMX426 | K100: C-Mount | L100: MONO/BAYXX8 | M100: 8 | N100: 1586 | O100: 69 | P100: =IF( OR((L100=U$5),(L100=U$6),(L100=U$7),(L100=U$8),(L100=U$9)), 100000/4, 100000) -> 25000 | Q100: 2.5 | R100: 72 | S100: 43.97940009 | X100: 8 | Y100: =IF( OR((L100=U$5),(L100=U$6),(L100=U$7),(L100=U$8),(L100=U$9)), 122, 215) -> 122 | Z100: 13.09677419 | AA100: 122 | AB100: 122 | AC100: 155 | AD100: 1586 | AE100: 1586 | AF100: 6.38764672 | AG100: 812 | AH100: 620
A101: HR | B101: HR-25000SBL-M | C101: 5320 | D101: 4600 | E101: 24.472 | F101: Mono | G101: 10GigE-SFP+ | H101: 2.74 | I101: 19.27028579 | J101: IMX540 | K101: C-Mount | L101: MONO/BAYXX8 | M101: 8 | N101: 35 | O101: 78 | P101: =IF( OR((L101=U$5),(L101=U$6),(L101=U$7),(L101=U$8),(L101=U$9)), 9500/4, 9500) -> 2375 | Q101: 2 | R101: =IF(20*LOG10(P101/Q101)<72, 20*LOG10(P101/Q101), 72) -> 61.49267237 | S101: =20*LOG10(SQRT(P101)) -> 33.75663614 | X101: =IF( OR((L101= U$8), (L101 = U$10)), 16, IF(OR((L101 = U$6), (L101 = U$9)), 24, IF((L101 = U$5), 8, 12) )) -> 8 | Y101: =IF( OR((L101=U$5),(L101=U$6),(L101=U$7),(L101=U$8),(L101=U$9)), 880, 1240) -> 880 | Z101: 85.80645161 | AA101: =FLOOR( IF(OR((L101= U$8),(L101= U$10)), Z101*16, IF(OR((L101 = U$6), (L101 = U$9)), Z101*24, IF((L101 = U$5),Y101, Z101*12)) ),1) -> 880 | AB101: =IF(AA101 > Y101, AA101, Y101) -> 880 | AC101: 240 | AD101: 35 | AE101: =FLOOR(IF((10 > (1000000/AD101)-AC101), (1000000/(AC101+10)), AD101),1) -> 35 | AF101: 6.85216 | AG101: 5320 | AH101: 4600
A102: HR | B102: HR-25000SBL-C | C102: 5320 | D102: 4600 | E102: 24.472 | F102: Color | G102: 10GigE-SFP+ | H102: 2.74 | I102: 19.27028579 | J102: IMX540 | K102: C-Mount | L102: MONO/BAYXX8 | M102: 8 | N102: 35 | O102: 72 | P102: 2375 | Q102: 2 | R102: =IF(20*LOG10(P102/Q102)<72, 20*LOG10(P102/Q102), 72) -> 61.49267237 | S102: =20*LOG10(SQRT(P102)) -> 33.75663614 | X102: 8 | Y102: =IF( OR((L102=U$5),(L102=U$6),(L102=U$7),(L102=U$8),(L102=U$9)), 880, 1240) -> 880 | Z102: 85.80645161 | AA102: 880 | AB102: =IF(AA102 > Y102, AA102, Y102) -> 880 | AC102: 240 | AD102: 35 | AE102: 35 | AF102: 6.85216 | AG102: 5320 | AH102: 4600
A103: HR | B103: HR-20000SBL-M | C103: 4504 | D103: 4504 | E103: 20.286016 | F103: Mono | G103: 10GigE-SFP+ | H103: 2.74 | I103: =SQRT(C103^2+D103^2)*H103*0.001 -> 17.452753 | J103: IMX541 | K103: C-Mount | L103: MONO/BAYXX8 | M103: =IF( OR((L103=U$5),(L103=U$6),(L103=U$7),(L103=U$8),(L103=U$9)), 8, 12) -> 8 | N103: 43 | O103: 78 | P103: 2375 | Q103: 2 | R103: 61.49267237 | S103: 33.75663614 | X103: 8 | Y103: =IF( OR((L103=U$5),(L103=U$6),(L103=U$7),(L103=U$8),(L103=U$9)), 720, 1070) -> 720 | Z103: 72.64516129 | AA103: 720 | AB103: 720 | AC103: 240 | AD103: =IF(OR(G103=$U$13, G103=$U$14), FLOOR(IF(AB103 > Y103/100, 150000000/(AB103*(D103+AC103)), (150000000/(Y103*(D103+AC103)))),1), FLOOR(IF(AB103 > Y103/100, 400000000/(AB103*(D103+AC103)), (400000000/(Y103*(D103+AC103)))),1)) -> 43 | AE103: 43 | AF103: 6.978389504 | AG103: 4504 | AH103: 4504
A104: HR | B104: HR-20000SBL-C | C104: 4504 | D104: 4504 | E104: =(C104*D104)/1000000 -> 20.286016 | F104: Color | G104: 10GigE-SFP+ | H104: 2.74 | I104: 17.452753 | J104: IMX541 | K104: C-Mount | L104: MONO/BAYXX8 | M104: 8 | N104: =AE104 -> 43 | O104: 72 | P104: 2375 | Q104: 2 | R104: 61.49267237 | S104: 33.75663614 | X104: 8 | Y104: =IF( OR((L104=U$5),(L104=U$6),(L104=U$7),(L104=U$8),(L104=U$9)), 720, 1070) -> 720 | Z104: 72.64516129 | AA104: 720 | AB104: 720 | AC104: 240 | AD104: 43 | AE104: 43 | AF104: 6.978389504 | AG104: 4504 | AH104: 4504
A105: HR | B105: HR-16000SBL-M | C105: 5320 | D105: 3032 | E105: 16.13024 | F105: Mono | G105: 10GigE-SFP+ | H105: 2.74 | I105: 16.77798096 | J105: IMX542 | K105: C-Mount | L105: MONO/BAYXX8 | M105: 8 | N105: 52 | O105: 78 | P105: 2375 | Q105: 2 | R105: 61.49267237 | S105: 33.75663614 | X105: 8 | Y105: =IF( OR((L105=U$5),(L105=U$6),(L105=U$7),(L105=U$8),(L105=U$9)), 870, 1240) -> 870 | Z105: 85.80645161 | AA105: 870 | AB105: 870 | AC105: 240 | AD105: 52 | AE105: 52 | AF105: 6.71017984 | AG105: 5320 | AH105: 3032
A106: HR | B106: HR-16000SBL-C | C106: 5320 | D106: 3032 | E106: 16.13024 | F106: Color | G106: 10GigE-SFP+ | H106: 2.74 | I106: 16.77798096 | J106: IMX542 | K106: C-Mount | L106: MONO/BAYXX8 | M106: 8 | N106: 52 | O106: 72 | P106: 2375 | Q106: 2 | R106: 61.49267237 | S106: 33.75663614 | X106: 8 | Y106: =IF( OR((L106=U$5),(L106=U$6),(L106=U$7),(L106=U$8),(L106=U$9)), 870, 1240) -> 870 | Z106: 85.80645161 | AA106: 870 | AB106: 870 | AC106: 240 | AD106: 52 | AE106: 52 | AF106: 6.71017984 | AG106: 5320 | AH106: 3032
A107: HR | B107: HR-12000SBL-M | C107: 4096 | D107: 3000 | E107: 12.288 | F107: Mono | G107: 10GigE-SFP+ | H107: 2.74 | I107: 13.91132729 | J107: IMX545 | K107: C-Mount | L107: MONO/BAYXX8 | M107: 8 | N107: 68 | O107: 78 | P107: 2375 | Q107: 2 | R107: 61.49267237 | S107: 33.75663614 | X107: 8 | Y107: =IF( OR((L107=U$5),(L107=U$6),(L107=U$7),(L107=U$8),(L107=U$9)), 680, 1000) -> 680 | Z107: 66.06451613 | AA107: 680 | AB107: 680 | AC107: 240 | AD107: 68 | AE107: 68 | AF107: 6.684672 | AG107: 4096 | AH107: 3000
A108: HR | B108: HR-12000SBL-C | C108: 4096 | D108: 3000 | E108: 12.288 | F108: Color | G108: 10GigE-SFP+ | H108: 2.74 | I108: 13.91132729 | J108: IMX545 | K108: C-Mount | L108: MONO/BAYXX8 | M108: 8 | N108: 68 | O108: 72 | P108: 2375 | Q108: 2 | R108: 61.49267237 | S108: 33.75663614 | X108: 8 | Y108: =IF( OR((L108=U$5),(L108=U$6),(L108=U$7),(L108=U$8),(L108=U$9)), 680, 1000) -> 680 | Z108: 66.06451613 | AA108: 680 | AB108: 680 | AC108: 240 | AD108: 68 | AE108: 68 | AF108: 6.684672 | AG108: 4096 | AH108: 3000
A109: HR | B109: HR-8000SBL-M | C109: 2840 | D109: 2840 | E109: 8.0656 | F109: Mono | G109: 10GigE-SFP+ | H109: 2.74 | I109: 11.00484426 | J109: IMX546 | K109: C-Mount | L109: MONO/BAYXX8 | M109: 8 | N109: 73 | O109: 78 | P109: 2375 | Q109: 2 | R109: 61.49267237 | S109: 33.75663614 | X109: 8 | Y109: =IF( OR((L109=U$5),(L109=U$6),(L109=U$7),(L109=U$8),(L109=U$9)), 660, 910) -> 660 | Z109: 45.80645161 | AA109: 660 | AB109: 660 | AC109: 240 | AD109: 73 | AE109: 73 | AF109: =AE109*C109*D109*X109/1000000000 -> 4.7103104 | AG109: 2840 | AH109: 2840
A110: HR | B110: HR-8000SBL-C | C110: 2840 | D110: 2840 | E110: 8.0656 | F110: Color | G110: 10GigE-SFP+ | H110: 2.74 | I110: 11.00484426 | J110: IMX546 | K110: C-Mount | L110: MONO/BAYXX8 | M110: 8 | N110: 73 | O110: 72 | P110: 2375 | Q110: 2 | R110: 61.49267237 | S110: 33.75663614 | X110: 8 | Y110: =IF( OR((L110=U$5),(L110=U$6),(L110=U$7),(L110=U$8),(L110=U$9)), 660, 910) -> 660 | Z110: 45.80645161 | AA110: 660 | AB110: 660 | AC110: 240 | AD110: 73 | AE110: 73 | AF110: 4.7103104 | AG110: 2840 | AH110: 2840
A111: HR | B111: HR-5000SBL-M | C111: 2448 | D111: 2048 | E111: 5.013504 | F111: Mono | G111: 10GigE-SFP+ | H111: 2.74 | I111: 8.745283372 | J111: IMX547 | K111: C-Mount | L111: MONO/BAYXX8 | M111: 8 | N111: 99 | O111: 78 | P111: 2375 | Q111: 2 | R111: 61.49267237 | S111: 33.75663614 | X111: 8 | Y111: =IF( OR((L111=U$5),(L111=U$6),(L111=U$7),(L111=U$8),(L111=U$9)), 660, 900) -> 660 | Z111: 39.48387097 | AA111: 660 | AB111: 660 | AC111: 240 | AD111: 99 | AE111: 99 | AF111: 3.970695168 | AG111: 2448 | AH111: 2048
A112: HR | B112: HR-5000SBL-C | C112: 2448 | D112: 2048 | E112: 5.013504 | F112: Color | G112: 10GigE-SFP+ | H112: 2.74 | I112: 8.745283372 | J112: IMX547 | K112: C-Mount | L112: MONO/BAYXX8 | M112: 8 | N112: 99 | O112: 72 | P112: 2375 | Q112: 2 | R112: 61.49267237 | S112: 33.75663614 | X112: 8 | Y112: =IF( OR((L112=U$5),(L112=U$6),(L112=U$7),(L112=U$8),(L112=U$9)), 660, 900) -> 660 | Z112: 39.48387097 | AA112: 660 | AB112: 660 | AC112: 240 | AD112: 99 | AE112: 99 | AF112: 3.970695168 | AG112: 2448 | AH112: 2048
A113: HT | B113: HT-12000S-M | C113: 4096 | D113: 3000 | E113: 12.288 | F113: Mono | G113: 10GigE-BaseT | H113: 3.45 | I113: 17.51608728 | J113: IMX253 | K113: C-Mount | L113: MONO/BAYXX8 | M113: 8 | N113: 80 | O113: 68 | P113: =IF( OR((L113=U$5),(L113=U$6),(L113=U$7),(L113=U$8),(L113=U$9)), 11000/4, 11000) -> 2750 | Q113: 2 | R113: 62.76605396 | S113: 34.39332694 | X113: 8 | Y113: =IF( OR((L113=U$5),(L113=U$6),(L113=U$7),(L113=U$8),(L113=U$9)), 610, 1054) -> 610 | Z113: 66.06451613 | AA113: 610 | AB113: 610 | AC113: 63 | AD113: 80 | AE113: 80 | AF113: 7.86432 | AG113: 4096 | AH113: 3000
A114: HT | B114: HT-12000S-C | C114: 4096 | D114: 3000 | E114: 12.288 | F114: Color | G114: 10GigE-BaseT | H114: 3.45 | I114: 17.51608728 | J114: IMX253 | K114: C-Mount | L114: MONO/BAYXX8 | M114: 8 | N114: 80 | O114: 63 | P114: 2750 | Q114: 2 | R114: 62.76605396 | S114: 34.39332694 | X114: 8 | Y114: =IF( OR((L114=U$5),(L114=U$6),(L114=U$7),(L114=U$8),(L114=U$9)), 610, 1054) -> 610 | Z114: 66.06451613 | AA114: 610 | AB114: 610 | AC114: 63 | AD114: 80 | AE114: 80 | AF114: 7.86432 | AG114: 4096 | AH114: 3000
A115: HT | B115: HT-8000S-M | C115: 4096 | D115: 2160 | E115: 8.84736 | F115: Mono | G115: 10GigE-BaseT | H115: 3.45 | I115: 15.97570397 | J115: IMX255 | K115: C-Mount | L115: MONO/BAYXX8 | M115: 8 | N115: 110 | O115: 68 | P115: 2750 | Q115: 2 | R115: 62.76605396 | S115: 34.39332694 | X115: 8 | Y115: =IF( OR((L115=U$5),(L115=U$6),(L115=U$7),(L115=U$8),(L115=U$9)), 610, 1054) -> 610 | Z115: 66.06451613 | AA115: 610 | AB115: 610 | AC115: 71 | AD115: 110 | AE115: 110 | AF115: 7.7856768 | AG115: 4096 | AH115: 2160
A116: HT | B116: HT-8000S-C | C116: 4096 | D116: 2160 | E116: 8.84736 | F116: Color | G116: 10GigE-BaseT | H116: 3.45 | I116: 15.97570397 | J116: IMX255 | K116: C-Mount | L116: MONO/BAYXX8 | M116: 8 | N116: 110 | O116: 63 | P116: 2750 | Q116: 2 | R116: 62.76605396 | S116: 34.39332694 | X116: 8 | Y116: =IF( OR((L116=U$5),(L116=U$6),(L116=U$7),(L116=U$8),(L116=U$9)), 610, 1054) -> 610 | Z116: 66.06451613 | AA116: 610 | AB116: 610 | AC116: 71 | AD116: 110 | AE116: 110 | AF116: 7.7856768 | AG116: 4096 | AH116: 2160
A117: HT | B117: HT-5000S-M | C117: 2448 | D117: 2048 | E117: 5.013504 | F117: Mono | G117: 10GigE-BaseT | H117: 3.45 | I117: 11.01139695 | J117: IMX250 | K117: C-Mount | L117: MONO/BAYXX8 | M117: 8 | N117: 163 | O117: 68 | P117: 2750 | Q117: 2 | R117: 62.76605396 | S117: 34.39332694 | X117: 8 | Y117: =IF( OR((L117=U$5),(L117=U$6),(L117=U$7),(L117=U$8),(L117=U$9)), 438, 800) -> 438 | Z117: 39.48387097 | AA117: 438 | AB117: 438 | AC117: 47 | AD117: 163 | AE117: 163 | AF117: 6.537609216 | AG117: 2448 | AH117: 2048
A118: HT | B118: HT-5000S-C | C118: 2448 | D118: 2048 | E118: 5.013504 | F118: Color | G118: 10GigE-BaseT | H118: 3.45 | I118: 11.01139695 | J118: IMX250 | K118: C-Mount | L118: MONO/BAYXX8 | M118: 8 | N118: 163 | O118: 63 | P118: 2750 | Q118: 2 | R118: 62.76605396 | S118: 34.39332694 | X118: 8 | Y118: =IF( OR((L118=U$5),(L118=U$6),(L118=U$7),(L118=U$8),(L118=U$9)), 438, 800) -> 438 | Z118: 39.48387097 | AA118: 438 | AB118: 438 | AC118: 47 | AD118: 163 | AE118: 163 | AF118: 6.537609216 | AG118: 2448 | AH118: 2048
A119: HT | B119: HT-3000S-M | C119: 2048 | D119: 1536 | E119: 3.145728 | F119: Mono | G119: 10GigE-BaseT | H119: 3.45 | I119: 8.832 | J119: IMX252 | K119: C-Mount | L119: MONO/BAYXX8 | M119: 8 | N119: 216 | O119: 68 | P119: 2750 | Q119: 2 | R119: 62.76605396 | S119: 34.39332694 | X119: 8 | Y119: =IF( OR((L119=U$5),(L119=U$6),(L119=U$7),(L119=U$8),(L119=U$9)), 438, 800) -> 438 | Z119: 33.03225806 | AA119: 438 | AB119: 438 | AC119: 47 | AD119: 216 | AE119: 216 | AF119: 5.435817984 | AG119: 2048 | AH119: 1536
A120: HT | B120: HT-3000S-C | C120: 2048 | D120: 1536 | E120: 3.145728 | F120: Color | G120: 10GigE-BaseT | H120: 3.45 | I120: 8.832 | J120: IMX252 | K120: C-Mount | L120: MONO/BAYXX8 | M120: 8 | N120: 216 | O120: 63 | P120: 2750 | Q120: 2 | R120: 62.76605396 | S120: 34.39332694 | X120: 8 | Y120: =IF( OR((L120=U$5),(L120=U$6),(L120=U$7),(L120=U$8),(L120=U$9)), 438, 800) -> 438 | Z120: 33.03225806 | AA120: 438 | AB120: 438 | AC120: 47 | AD120: 216 | AE120: 216 | AF120: 5.435817984 | AG120: 2048 | AH120: 1536
A121: HT | B121: HT-12000SP-M | C121: 4096 | D121: 3000 | E121: 12.288 | F121: Mono | G121: 10GigE-BaseT | H121: 3.45 | I121: 17.51608728 | J121: IMX253 | K121: C-Mount | L121: MONO/BAYXX8 | M121: 8 | N121: 80 | O121: 68 | P121: 2750 | Q121: 2 | R121: 62.76605396 | S121: 34.39332694 | X121: 8 | Y121: =IF( OR((L121=U$5),(L121=U$6),(L121=U$7),(L121=U$8),(L121=U$9)), 610, 1054) -> 610 | Z121: 66.06451613 | AA121: 610 | AB121: 610 | AC121: 63 | AD121: 80 | AE121: 80 | AF121: 7.86432 | AG121: 4096 | AH121: 3000
A122: HT | B122: HT-12000SP-C | C122: 4096 | D122: 3000 | E122: 12.288 | F122: Color | G122: 10GigE-BaseT | H122: 3.45 | I122: 17.51608728 | J122: IMX253 | K122: C-Mount | L122: MONO/BAYXX8 | M122: 8 | N122: 80 | O122: 63 | P122: 2750 | Q122: 2 | R122: 62.76605396 | S122: 34.39332694 | X122: 8 | Y122: =IF( OR((L122=U$5),(L122=U$6),(L122=U$7),(L122=U$8),(L122=U$9)), 610, 1054) -> 610 | Z122: 66.06451613 | AA122: 610 | AB122: 610 | AC122: 63 | AD122: 80 | AE122: 80 | AF122: 7.86432 | AG122: 4096 | AH122: 3000
A123: HT | B123: HT-5000SP-M | C123: 2448 | D123: 2048 | E123: 5.013504 | F123: Mono | G123: 10GigE-BaseT | H123: 3.45 | I123: 11.01139695 | J123: IMX250 | K123: C-Mount | L123: MONO/BAYXX8 | M123: 8 | N123: 163 | O123: 68 | P123: 2750 | Q123: 2 | R123: 62.76605396 | S123: 34.39332694 | X123: 8 | Y123: =IF( OR((L123=U$5),(L123=U$6),(L123=U$7),(L123=U$8),(L123=U$9)), 438, 800) -> 438 | Z123: 39.48387097 | AA123: 438 | AB123: 438 | AC123: 47 | AD123: 163 | AE123: 163 | AF123: 6.537609216 | AG123: 2448 | AH123: 2048
A124: HT | B124: HT-5000SP-C | C124: 2448 | D124: 2048 | E124: 5.013504 | F124: Color | G124: 10GigE-BaseT | H124: 3.45 | I124: 11.01139695 | J124: IMX250 | K124: C-Mount | L124: MONO/BAYXX8 | M124: 8 | N124: 163 | O124: 63 | P124: 2750 | Q124: 2 | R124: 62.76605396 | S124: 34.39332694 | X124: 8 | Y124: =IF( OR((L124=U$5),(L124=U$6),(L124=U$7),(L124=U$8),(L124=U$9)), 438, 800) -> 438 | Z124: 39.48387097 | AA124: 438 | AB124: 438 | AC124: 47 | AD124: 163 | AE124: 163 | AF124: 6.537609216 | AG124: 2448 | AH124: 2048
A125: HT | B125: HT-2000M | C125: 2048 | D125: 1088 | E125: 2.228224 | F125: Mono | G125: 10GigE-BaseT | H125: 5.5 | I125: 12.75484034 | J125: CMV2000 | K125: C-Mount | L125: MONO/BAYXX8 | M125: =IF( OR((L125=U$5),(L125=U$6),(L125=U$7),(L125=U$8),(L125=U$9)), 8, 10) -> 8 | N125: 338 | O125: 62 | P125: 13500 | Q125: 13 | R125: 60.32780832 | S125: 41.30333768 | X125: 8 | Y125: 403 | Z125: 33.03225806 | AA125: 403 | AB125: =IF(AA125 > Y125, AA125, Y125) -> 403 | AC125: 10 | AD125: 338 | AE125: 338 | AF125: 6.025117696 | AG125: 2048 | AH125: 1088
A126: HT | B126: HT-2000C | C126: 2048 | D126: 1088 | E126: 2.228224 | F126: Color | G126: 10GigE-BaseT | H126: 5.5 | I126: 12.75484034 | J126: CMV2000 | K126: C-Mount | L126: MONO/BAYXX8 | M126: 8 | N126: 338 | O126: 48 | P126: 13500 | Q126: 13 | R126: 60.32780832 | S126: 41.30333768 | X126: 8 | Y126: 403 | Z126: 33.03225806 | AA126: 403 | AB126: 403 | AC126: 10 | AD126: 338 | AE126: 338 | AF126: 6.025117696 | AG126: 2048 | AH126: 1088
A127: HT | B127: HT-2000N | C127: 2048 | D127: 1088 | E127: 2.228224 | F127: Mono | G127: 10GigE-BaseT | H127: 5.5 | I127: 12.75484034 | J127: CMV2000 | K127: C-Mount | L127: MONO/BAYXX8 | M127: 8 | N127: 338 | O127: 62 | P127: 13500 | Q127: 13 | R127: 60.32780832 | S127: 41.30333768 | X127: 8 | Y127: 403 | Z127: 33.03225806 | AA127: 403 | AB127: 403 | AC127: 10 | AD127: 338 | AE127: 338 | AF127: 6.025117696 | AG127: 2048 | AH127: 1088
A128: HT | B128: HT-4000M | C128: 2048 | D128: 2048 | E128: 4.194304 | F128: Color | G128: 10GigE-BaseT | H128: 5.5 | I128: 15.92970157 | J128: CMV4000 | K128: C-Mount | L128: MONO/BAYXX8 | M128: 8 | N128: 179 | O128: 62 | P128: 13500 | Q128: 13 | R128: 60.32780832 | S128: 41.30333768 | X128: 8 | Y128: 403 | Z128: 33.03225806 | AA128: 403 | AB128: 403 | AC128: 30 | AD128: 179 | AE128: 179 | AF128: 6.006243328 | AG128: 2048 | AH128: 2048
A129: HT | B129: HT-4000C | C129: 2048 | D129: 2048 | E129: 4.194304 | F129: Mono | G129: 10GigE-BaseT | H129: 5.5 | I129: 15.92970157 | J129: CMV4000 | K129: C-Mount | L129: MONO/BAYXX8 | M129: 8 | N129: 179 | O129: 48 | P129: 13500 | Q129: 13 | R129: 60.32780832 | S129: 41.30333768 | X129: 8 | Y129: 403 | Z129: 33.03225806 | AA129: 403 | AB129: 403 | AC129: 30 | AD129: 179 | AE129: 179 | AF129: 6.006243328 | AG129: 2048 | AH129: 2048
A130: HT | B130: HT-4000N | C130: 2048 | D130: 2048 | E130: 4.194304 | F130: Color | G130: 10GigE-BaseT | H130: 5.5 | I130: 15.92970157 | J130: CMV4000 | K130: C-Mount | L130: MONO/BAYXX8 | M130: 8 | N130: 179 | O130: 62 | P130: 13500 | Q130: 13 | R130: 60.32780832 | S130: 41.30333768 | X130: 8 | Y130: 403 | Z130: 33.03225806 | AA130: 403 | AB130: 403 | AC130: 30 | AD130: 179 | AE130: 179 | AF130: 6.006243328 | AG130: 2048 | AH130: 2048
A131: HT | B131: HT-12000M | C131: 4096 | D131: 3072 | E131: 12.582912 | F131: Mono | G131: 10GigE-BaseT | H131: 5.5 | I131: 28.16 | J131: CMV12000 | K131: M42 | L131: MONO/BAYXX8 | M131: 8 | N131: 84 | O131: 62 | P131: 13500 | Q131: 13 | R131: 60.32780832 | S131: 41.30333768 | X131: 8 | Y131: =IF( OR((L131=U$5),(L131=U$6),(L131=U$7),(L131=U$8),(L131=U$9)), 574, 717) -> 574 | Z131: =IF(OR(G131=$U$13, G131=$U$14),C131*150/9300, C131*400/24000) -> 66.06451613 | AA131: 574 | AB131: 574 | AC131: 30 | AD131: 84 | AE131: 84 | AF131: 8.455716864 | AG131: 4096 | AH131: 3072
A132: HT | B132: HT-12000C | C132: 4096 | D132: 3072 | E132: 12.582912 | F132: Color | G132: 10GigE-BaseT | H132: 5.5 | I132: 28.16 | J132: CMV12000 | K132: M42 | L132: MONO/BAYXX8 | M132: 8 | N132: 84 | O132: 48 | P132: 13500 | Q132: 13 | R132: 60.32780832 | S132: 41.30333768 | X132: 8 | Y132: =IF( OR((L132=U$5),(L132=U$6),(L132=U$7),(L132=U$8),(L132=U$9)), 574, 717) -> 574 | Z132: 66.06451613 | AA132: 574 | AB132: 574 | AC132: 30 | AD132: 84 | AE132: 84 | AF132: 8.455716864 | AG132: 4096 | AH132: 3072
A133: HT | B133: HT-20000M | C133: 5120 | D133: 3840 | E133: 19.6608 | F133: Mono | G133: 10GigE-BaseT | H133: 6.4 | I133: 40.96 | J133: CMV20000 | K133: M52/F/EF | L133: MONO/BAYXX8 | M133: 8 | N133: 32 | O133: 62 | P133: 15000 | Q133: 8 | R133: 65.46002544 | S133: 41.76091259 | X133: =IF( OR((L133= U$8), (L133 = U$10)), 16, IF(OR((L133 = U$6), (L133 = U$9)), 24, IF((L133 = U$5), 8, 12) )) -> 8 | Y133: 1202 | Z133: 82.58064516 | AA133: =FLOOR( IF(OR((L133= U$8),(L133= U$10)), Z133*16, IF(OR((L133 = U$6), (L133 = U$9)), Z133*24, IF((L133 = U$5),Y133, Z133*12)) ),1) -> 1202 | AB133: 1202 | AC133: 50 | AD133: 32 | AE133: 32 | AF133: 5.0331648 | AG133: 5120 | AH133: 3840
A134: HT | B134: HT-20000C | C134: 5120 | D134: 3840 | E134: 19.6608 | F134: Color | G134: 10GigE-BaseT | H134: 6.4 | I134: 40.96 | J134: CMV20000 | K134: M52/F/EF | L134: MONO/BAYXX8 | M134: 8 | N134: 32 | O134: 48 | P134: 15000 | Q134: 8 | R134: 65.46002544 | S134: 41.76091259 | X134: 8 | Y134: 1202 | Z134: 82.58064516 | AA134: 1202 | AB134: 1202 | AC134: 50 | AD134: 32 | AE134: 32 | AF134: 5.0331648 | AG134: 5120 | AH134: 3840
A135: HT | B135: HT-50000M | C135: 7920 | D135: 6004 | E135: 47.55168 | F135: Mono | G135: 10GigE-BaseT | H135: 4.6 | I135: 45.71724666 | J135: CMV50000 | K135: M52/F/EF | L135: MONO/BAYXX8 | M135: =IF( OR((L135=U$5),(L135=U$6),(L135=U$7),(L135=U$8),(L135=U$9)), 8, 12) -> 8 | N135: 23 | O135: 61 | P135: 14500 | Q135: 8.8 | R135: 64.3377066 | S135: 41.61368002 | X135: 8 | Y135: 1043 | Z135: 127.7419355 | AA135: 1043 | AB135: 1043 | AC135: 150 | AD135: =IF(OR(G135=$U$13, G135=$U$14), FLOOR(IF(AB135 > Y135/100, 150000000/(AB135*(D135+AC135)), (150000000/(Y135*(D135+AC135)))),1), FLOOR(IF(AB135 > Y135/100, 400000000/(AB135*(D135+AC135)), (400000000/(Y135*(D135+AC135)))),1)) -> 23 | AE135: 23 | AF135: 8.74950912 | AG135: 7920 | AH135: 6004
A136: HT | B136: HT-50000C | C136: 7920 | D136: 6004 | E136: 47.55168 | F136: Color | G136: 10GigE-BaseT | H136: 4.6 | I136: 45.71724666 | J136: CMV50000 | K136: M52/F/EF | L136: MONO/BAYXX8 | M136: 8 | N136: 23 | O136: 55 | P136: 14500 | Q136: 8.8 | R136: 64.3377066 | S136: 41.61368002 | X136: 8 | Y136: 1043 | Z136: 127.7419355 | AA136: 1043 | AB136: 1043 | AC136: 150 | AD136: 23 | AE136: 23 | AF136: 8.74950912 | AG136: 7920 | AH136: 6004
A137: HT | B137: HT-25000SB-M | C137: 5320 | D137: 4600 | E137: 24.472 | F137: Mono | G137: 10GigE-BaseT | H137: 2.74 | I137: 19.27028579 | J137: IMX530 | K137: C-Mount | L137: MONO/BAYXX8 | M137: 8 | N137: 51 | O137: 78 | P137: =IF( OR((L137=U$5),(L137=U$6),(L137=U$7),(L137=U$8),(L137=U$9)), 9500/4, 9500) -> 2375 | Q137: 2 | R137: =IF(20*LOG10(P137/Q137)<72, 20*LOG10(P137/Q137), 72) -> 61.49267237 | S137: =20*LOG10(SQRT(P137)) -> 33.75663614 | X137: 8 | Y137: =IF( OR((L137=U$5),(L137=U$6),(L137=U$7),(L137=U$8),(L137=U$9)), 600, 1029) -> 600 | Z137: 85.80645161 | AA137: 600 | AB137: =IF(AA137 > Y137, AA137, Y137) -> 600 | AC137: 240 | AD137: 51 | AE137: 51 | AF137: 9.984576 | AG137: 5320 | AH137: 4600
A138: HT | B138: HT-25000SB-C | C138: 5320 | D138: 4600 | E138: 24.472 | F138: Color | G138: 10GigE-BaseT | H138: 2.74 | I138: 19.27028579 | J138: IMX530 | K138: C-Mount | L138: MONO/BAYXX8 | M138: 8 | N138: 51 | O138: 72 | P138: 2375 | Q138: 2 | R138: =IF(20*LOG10(P138/Q138)<72, 20*LOG10(P138/Q138), 72) -> 61.49267237 | S138: =20*LOG10(SQRT(P138)) -> 33.75663614 | X138: 8 | Y138: =IF( OR((L138=U$5),(L138=U$6),(L138=U$7),(L138=U$8),(L138=U$9)), 600, 1029) -> 600 | Z138: 85.80645161 | AA138: 600 | AB138: =IF(AA138 > Y138, AA138, Y138) -> 600 | AC138: 240 | AD138: 51 | AE138: 51 | AF138: 9.984576 | AG138: 5320 | AH138: 4600
A139: HT | B139: HT-20000SB-M | C139: 4504 | D139: 4504 | E139: 20.286016 | F139: Mono | G139: 10GigE-BaseT | H139: 2.74 | I139: =SQRT(C139^2+D139^2)*H139*0.001 -> 17.452753 | J139: IMX531 | K139: C-Mount | L139: MONO/BAYXX8 | M139: 8 | N139: 61 | O139: 78 | P139: 2375 | Q139: 2 | R139: 61.49267237 | S139: 33.75663614 | X139: 8 | Y139: =IF( OR((L139=U$5),(L139=U$6),(L139=U$7),(L139=U$8),(L139=U$9)), 510, 871) -> 510 | Z139: 72.64516129 | AA139: 510 | AB139: 510 | AC139: 240 | AD139: 61 | AE139: 61 | AF139: 9.899575808 | AG139: 4504 | AH139: 4504
A140: HT | B140: HT-20000SB-C | C140: 4504 | D140: 4504 | E140: =(C140*D140)/1000000 -> 20.286016 | F140: Color | G140: 10GigE-BaseT | H140: 2.74 | I140: 17.452753 | J140: IMX531 | K140: C-Mount | L140: MONO/BAYXX8 | M140: 8 | N140: =AE140 -> 61 | O140: 72 | P140: 2375 | Q140: 2 | R140: 61.49267237 | S140: 33.75663614 | X140: 8 | Y140: =IF( OR((L140=U$5),(L140=U$6),(L140=U$7),(L140=U$8),(L140=U$9)), 510, 871) -> 510 | Z140: 72.64516129 | AA140: 510 | AB140: 510 | AC140: 240 | AD140: 61 | AE140: 61 | AF140: 9.899575808 | AG140: 4504 | AH140: 4504
A141: HT | B141: HT-16000SB-M | C141: 5320 | D141: 3032 | E141: 16.13024 | F141: Mono | G141: 10GigE-BaseT | H141: 2.74 | I141: 16.77798096 | J141: IMX532 | K141: C-Mount | L141: MONO/BAYXX8 | M141: 8 | N141: 77 | O141: 78 | P141: 2375 | Q141: 2 | R141: 61.49267237 | S141: 33.75663614 | X141: 8 | Y141: =IF( OR((L141=U$5),(L141=U$6),(L141=U$7),(L141=U$8),(L141=U$9)), 588, 1029) -> 588 | Z141: 85.80645161 | AA141: 588 | AB141: 588 | AC141: 240 | AD141: 77 | AE141: 77 | AF141: 9.93622784 | AG141: 5320 | AH141: 3032
A142: HT | B142: HT-16000SB-C | C142: 5320 | D142: 3032 | E142: 16.13024 | F142: Color | G142: 10GigE-BaseT | H142: 2.74 | I142: 16.77798096 | J142: IMX532 | K142: C-Mount | L142: MONO/BAYXX8 | M142: 8 | N142: 77 | O142: 72 | P142: 2375 | Q142: 2 | R142: 61.49267237 | S142: 33.75663614 | X142: 8 | Y142: =IF( OR((L142=U$5),(L142=U$6),(L142=U$7),(L142=U$8),(L142=U$9)), 588, 1029) -> 588 | Z142: 85.80645161 | AA142: 588 | AB142: 588 | AC142: 240 | AD142: 77 | AE142: 77 | AF142: 9.93622784 | AG142: 5320 | AH142: 3032
A143: HT | B143: HT-12000SB-M | C143: 4096 | D143: 3000 | E143: 12.288 | F143: Mono | G143: 10GigE-BaseT | H143: 2.74 | I143: 13.91132729 | J143: IMX535 | K143: C-Mount | L143: MONO/BAYXX8 | M143: 8 | N143: 102 | O143: 78 | P143: 2375 | Q143: 2 | R143: 61.49267237 | S143: 33.75663614 | X143: 8 | Y143: =IF( OR((L143=U$5),(L143=U$6),(L143=U$7),(L143=U$8),(L143=U$9)), 450, 792) -> 450 | Z143: 66.06451613 | AA143: 450 | AB143: 450 | AC143: 240 | AD143: 102 | AE143: 102 | AF143: 10.027008 | AG143: 4096 | AH143: 3000
A144: HT | B144: HT-12000SB-C | C144: 4096 | D144: 3000 | E144: 12.288 | F144: Color | G144: 10GigE-BaseT | H144: 2.74 | I144: 13.91132729 | J144: IMX535 | K144: C-Mount | L144: MONO/BAYXX8 | M144: 8 | N144: 102 | O144: 72 | P144: 2375 | Q144: 2 | R144: 61.49267237 | S144: 33.75663614 | X144: 8 | Y144: =IF( OR((L144=U$5),(L144=U$6),(L144=U$7),(L144=U$8),(L144=U$9)), 450, 792) -> 450 | Z144: 66.06451613 | AA144: 450 | AB144: 450 | AC144: 240 | AD144: 102 | AE144: 102 | AF144: 10.027008 | AG144: 4096 | AH144: 3000
A145: HT | B145: HT-8000SB-M | C145: 2840 | D145: 2840 | E145: 8.0656 | F145: Mono | G145: 10GigE-BaseT | H145: 2.74 | I145: 11.00484426 | J145: IMX536 | K145: C-Mount | L145: MONO/BAYXX8 | M145: 8 | N145: 154 | O145: 78 | P145: 2375 | Q145: 2 | R145: 61.49267237 | S145: 33.75663614 | X145: 8 | Y145: =IF( OR((L145=U$5),(L145=U$6),(L145=U$7),(L145=U$8),(L145=U$9)), 315, 549) -> 315 | Z145: 45.80645161 | AA145: 315 | AB145: 315 | AC145: 240 | AD145: 154 | AE145: 154 | AF145: =AE145*C145*D145*X145/1000000000 -> 9.9368192 | AG145: 2840 | AH145: 2840
A146: HT | B146: HT-8000SB-C | C146: 2840 | D146: 2840 | E146: 8.0656 | F146: Color | G146: 10GigE-BaseT | H146: 2.74 | I146: 11.00484426 | J146: IMX536 | K146: C-Mount | L146: MONO/BAYXX8 | M146: 8 | N146: 154 | O146: 72 | P146: 2375 | Q146: 2 | R146: 61.49267237 | S146: 33.75663614 | X146: 8 | Y146: =IF( OR((L146=U$5),(L146=U$6),(L146=U$7),(L146=U$8),(L146=U$9)), 315, 549) -> 315 | Z146: 45.80645161 | AA146: 315 | AB146: 315 | AC146: 240 | AD146: 154 | AE146: 154 | AF146: 9.9368192 | AG146: 2840 | AH146: 2840
A147: HT | B147: HT-5000SB-M | C147: 2448 | D147: 2048 | E147: 5.013504 | F147: Mono | G147: 10GigE-BaseT | H147: 2.74 | I147: 8.745283372 | J147: IMX537 | K147: C-Mount | L147: MONO/BAYXX8 | M147: 8 | N147: 247 | O147: 78 | P147: 2375 | Q147: 2 | R147: 61.49267237 | S147: 33.75663614 | X147: 8 | Y147: =IF( OR((L147=U$5),(L147=U$6),(L147=U$7),(L147=U$8),(L147=U$9)), 265, 473) -> 265 | Z147: 39.48387097 | AA147: 265 | AB147: 265 | AC147: 240 | AD147: 247 | AE147: 247 | AF147: 9.906683904 | AG147: 2448 | AH147: 2048
A148: HT | B148: HT-5000SB-C | C148: 2448 | D148: 2048 | E148: 5.013504 | F148: Color | G148: 10GigE-BaseT | H148: 2.74 | I148: 8.745283372 | J148: IMX537 | K148: C-Mount | L148: MONO/BAYXX8 | M148: 8 | N148: 247 | O148: 72 | P148: 2375 | Q148: 2 | R148: 61.49267237 | S148: 33.75663614 | X148: 8 | Y148: =IF( OR((L148=U$5),(L148=U$6),(L148=U$7),(L148=U$8),(L148=U$9)), 265, 473) -> 265 | Z148: 39.48387097 | AA148: 265 | AB148: 265 | AC148: 240 | AD148: 247 | AE148: 247 | AF148: 9.906683904 | AG148: 2448 | AH148: 2048
A149: HT | B149: HT-30000S-M | C149: 6464 | D149: 4852 | E149: 31.363328 | F149: Mono | G149: 10GigE-BaseT | H149: 3.45 | I149: 27.88428219 | J149: IMX342 | K149: M52/F/EF | L149: MONO/BAYXX8 | M149: 8 | N149: 35 | O149: 68 | P149: =IF( OR((L149=U$5),(L149=U$6),(L149=U$7),(L149=U$8),(L149=U$9)), 11000/4, 11000) -> 2750 | Q149: 2 | R149: 62.76605396 | S149: 34.39332694 | X149: 8 | Y149: =IF( OR((L149=U$5),(L149=U$6),(L149=U$7),(L149=U$8),(L149=U$9)), 860, 1175) -> 860 | Z149: =IF(OR(G149=$U$13, G149=$U$14),C149*150/9900, C149*400/24000) -> 97.93939394 | AA149: 860 | AB149: 860 | AC149: 80 | AD149: 35 | AE149: 35 | AF149: 8.78173184 | AG149: 6464 | AH149: 4852
A150: HT | B150: HT-30000S-C | C150: 6464 | D150: 4852 | E150: 31.363328 | F150: Color | G150: 10GigE-BaseT | H150: 3.45 | I150: 27.88428219 | J150: IMX342 | K150: M52/F/EF | L150: MONO/BAYXX8 | M150: 8 | N150: 35 | O150: 63 | P150: 2750 | Q150: 2 | R150: 62.76605396 | S150: 34.39332694 | X150: 8 | Y150: =IF( OR((L150=U$5),(L150=U$6),(L150=U$7),(L150=U$8),(L150=U$9)), 860, 1175) -> 860 | Z150: =IF(OR(G150=$U$13, G150=$U$14),C150*150/9900, C150*400/24000) -> 97.93939394 | AA150: 860 | AB150: 860 | AC150: 80 | AD150: 35 | AE150: 35 | AF150: 8.78173184 | AG150: 6464 | AH150: 4852
A151: HT | B151: HT-20000S-M | C151: 4416 | D151: 4428 | E151: 19.554048 | F151: Mono | G151: 10GigE-BaseT | H151: 3.45 | I151: 21.57512055 | J151: IMX367 | K151: M52/F/EF | L151: MONO/BAYXX8 | M151: 8 | N151: 43 | O151: 68 | P151: 2750 | Q151: 2 | R151: 62.76605396 | S151: 34.39332694 | X151: 8 | Y151: =IF( OR((L151=U$5),(L151=U$6),(L151=U$7),(L151=U$8),(L151=U$9)), 770, 1175) -> 770 | Z151: =IF(OR(G151=$U$13, G151=$U$14),C151*150/9300, C151*400/24000) -> 71.22580645 | AA151: 770 | AB151: 770 | AC151: 80 | AD151: 43 | AE151: 43 | AF151: 6.726592512 | AG151: 4416 | AH151: 4428
A152: HT | B152: HT-20000S-C | C152: 4416 | D152: 4428 | E152: 19.554048 | F152: Color | G152: 10GigE-BaseT | H152: 3.45 | I152: 21.57512055 | J152: IMX367 | K152: M52/F/EF | L152: MONO/BAYXX8 | M152: 8 | N152: 43 | O152: 63 | P152: 2750 | Q152: 2 | R152: 62.76605396 | S152: 34.39332694 | X152: 8 | Y152: =IF( OR((L152=U$5),(L152=U$6),(L152=U$7),(L152=U$8),(L152=U$9)), 770, 1175) -> 770 | Z152: =IF(OR(G152=$U$13, G152=$U$14),C152*150/9300, C152*400/24000) -> 71.22580645 | AA152: 770 | AB152: 770 | AC152: 80 | AD152: 43 | AE152: 43 | AF152: 6.726592512 | AG152: 4416 | AH152: 4428
A153: HT | B153: HT-17000S-M | C153: 5456 | D153: 3076 | E153: 16.782656 | F153: Mono | G153: 10GigE-BaseT | H153: 3.45 | I153: 21.60860123 | J153: IMX387 | K153: M52/F/EF | L153: MONO/BAYXX8 | M153: 8 | N153: 61 | O153: 68 | P153: 2750 | Q153: 2 | R153: 62.76605396 | S153: 34.39332694 | X153: 8 | Y153: =IF( OR((L153=U$5),(L153=U$6),(L153=U$7),(L153=U$8),(L153=U$9)), 770, 1175) -> 770 | Z153: =IF(OR(G153=$U$13, G153=$U$14),C153*150/9300, C153*400/24000) -> 88 | AA153: 770 | AB153: 770 | AC153: 80 | AD153: 61 | AE153: 61 | AF153: 8.189936128 | AG153: 5456 | AH153: 3076
A154: HT | B154: HT-17000S-C | C154: 5456 | D154: 3076 | E154: 16.782656 | F154: Color | G154: 10GigE-BaseT | H154: 3.45 | I154: 21.60860123 | J154: IMX387 | K154: M52/F/EF | L154: MONO/BAYXX8 | M154: 8 | N154: 61 | O154: 63 | P154: 2750 | Q154: 2 | R154: 62.76605396 | S154: 34.39332694 | X154: 8 | Y154: =IF( OR((L154=U$5),(L154=U$6),(L154=U$7),(L154=U$8),(L154=U$9)), 770, 1175) -> 770 | Z154: =IF(OR(G154=$U$13, G154=$U$14),C154*150/9300, C154*400/24000) -> 88 | AA154: 770 | AB154: 770 | AC154: 80 | AD154: 61 | AE154: 61 | AF154: 8.189936128 | AG154: 5456 | AH154: 3076
A155: HT | B155: HT-7000S-M | C155: 3208 | D155: 2200 | E155: 7.0576 | F155: Mono | G155: 10GigE-BaseT | H155: 4.5 | I155: 17.50451645 | J155: IMX420 | K155: C-Mount | L155: MONO/BAYXX8 | M155: 8 | N155: 176 | O155: 74 | P155: =IF( OR((L155=U$5),(L155=U$6),(L155=U$7),(L155=U$8),(L155=U$9)), 25000/4, 25000) -> 6250 | Q155: 2.5 | R155: 67.95880017 | S155: 37.95880017 | X155: 8 | Y155: =IF( OR((L155=U$5),(L155=U$6),(L155=U$7),(L155=U$8),(L155=U$9)), 370, 485) -> 370 | Z155: =IF(OR(G155=$U$13, G155=$U$14),C155*150/9900, C155*400/24000) -> 48.60606061 | AA155: 370 | AB155: 370 | AC155: 92 | AD155: 176 | AE155: 176 | AF155: 9.9371008 | AG155: 3208 | AH155: 2200
A156: HT | B156: HT-7000S-C | C156: 3208 | D156: 2200 | E156: 7.0576 | F156: Color | G156: 10GigE-BaseT | H156: 4.5 | I156: 17.50451645 | J156: IMX420 | K156: C-Mount | L156: MONO/BAYXX8 | M156: 8 | N156: 176 | O156: 69 | P156: 6250 | Q156: 2.5 | R156: 67.95880017 | S156: 37.95880017 | X156: 8 | Y156: =IF( OR((L156=U$5),(L156=U$6),(L156=U$7),(L156=U$8),(L156=U$9)), 370, 485) -> 370 | Z156: =IF(OR(G156=$U$13, G156=$U$14),C156*150/9900, C156*400/24000) -> 48.60606061 | AA156: 370 | AB156: 370 | AC156: 92 | AD156: 176 | AE156: 176 | AF156: 9.9371008 | AG156: 3208 | AH156: 2200
A157: HT | B157: HT-2800S-M | C157: 1936 | D157: 1464 | E157: 2.834304 | F157: Mono | G157: 10GigE-BaseT | H157: 4.5 | I157: 10.92248543 | J157: IMX421 | K157: C-Mount | L157: MONO/BAYXX8 | M157: 8 | N157: 410 | O157: 74 | P157: 6250 | Q157: 2.5 | R157: 67.95880017 | S157: 37.95880017 | X157: 8 | Y157: =IF( OR((L157=U$5),(L157=U$6),(L157=U$7),(L157=U$8),(L157=U$9)), 234, 420) -> 234 | Z157: =IF(OR(G157=$U$13, G157=$U$14),C157*150/9300, C157*400/24000) -> 31.22580645 | AA157: 234 | AB157: 234 | AC157: 98 | AD157: 410 | AE157: 410 | AF157: 9.29651712 | AG157: 1936 | AH157: 1464
A158: HT | B158: HT-2800S-C | C158: 1936 | D158: 1464 | E158: 2.834304 | F158: Color | G158: 10GigE-BaseT | H158: 4.5 | I158: 10.92248543 | J158: IMX421 | K158: C-Mount | L158: MONO/BAYXX8 | M158: 8 | N158: 410 | O158: 69 | P158: 6250 | Q158: 2.5 | R158: 67.95880017 | S158: 37.95880017 | X158: 8 | Y158: =IF( OR((L158=U$5),(L158=U$6),(L158=U$7),(L158=U$8),(L158=U$9)), 234, 420) -> 234 | Z158: =IF(OR(G158=$U$13, G158=$U$14),C158*150/9300, C158*400/24000) -> 31.22580645 | AA158: 234 | AB158: 234 | AC158: 98 | AD158: 410 | AE158: 410 | AF158: 9.29651712 | AG158: 1936 | AH158: 1464
A159: HT | B159: HT-2000S-M | C159: 1624 | D159: 1240 | E159: 2.01376 | F159: Mono | G159: 10GigE-BaseT | H159: 4.5 | I159: 9.194741106 | J159: IMX422 | K159: C-Mount | L159: MONO/BAYXX8 | M159: 8 | N159: 485 | O159: 74 | P159: 6250 | Q159: 2.5 | R159: 67.95880017 | S159: 37.95880017 | X159: 8 | Y159: =IF( OR((L159=U$5),(L159=U$6),(L159=U$7),(L159=U$8),(L159=U$9)), 234, 420) -> 234 | Z159: =IF(OR(G159=$U$13, G159=$U$14),C159*150/9300, C159*400/24000) -> 26.19354839 | AA159: 234 | AB159: 234 | AC159: 80 | AD159: 485 | AE159: 485 | AF159: 7.8133888 | AG159: 1624 | AH159: 1240
A160: HT | B160: HT-2000S-C | C160: 1624 | D160: 1240 | E160: 2.01376 | F160: Color | G160: 10GigE-BaseT | H160: 4.5 | I160: 9.194741106 | J160: IMX422 | K160: C-Mount | L160: MONO/BAYXX8 | M160: 8 | N160: 485 | O160: 69 | P160: 6250 | Q160: 2.5 | R160: 67.95880017 | S160: 37.95880017 | X160: 8 | Y160: =IF( OR((L160=U$5),(L160=U$6),(L160=U$7),(L160=U$8),(L160=U$9)), 234, 420) -> 234 | Z160: =IF(OR(G160=$U$13, G160=$U$14),C160*150/9300, C160*400/24000) -> 26.19354839 | AA160: 234 | AB160: 234 | AC160: 80 | AD160: 485 | AE160: 485 | AF160: 7.8133888 | AG160: 1624 | AH160: 1240
A161: HT | B161: HT-1800S-M | C161: 1604 | D161: 1100 | E161: 1.7644 | F161: Mono | G161: 10GigE-BaseT | H161: 9 | I161: 17.50451645 | J161: IMX425 | K161: C-Mount | L161: MONO/BAYXX8 | M161: 8 | N161: 660 | O161: 74 | P161: =IF( OR((L161=U$5),(L161=U$6),(L161=U$7),(L161=U$8),(L161=U$9)), 100000/4, 100000) -> 25000 | Q161: 2.5 | R161: 72 | S161: 43.97940009 | X161: 8 | Y161: =IF( OR((L161=U$5),(L161=U$6),(L161=U$7),(L161=U$8),(L161=U$9)), 177, 246) -> 177 | Z161: =IF(OR(G161=$U$13, G161=$U$14),C161*150/9900, C161*400/24000) -> 24.3030303 | AA161: 177 | AB161: 177 | AC161: 184 | AD161: 660 | AE161: 660 | AF161: 9.316032 | AG161: 1604 | AH161: 1100
A162: HT | B162: HT-1800S-C | C162: 1604 | D162: 1100 | E162: 1.7644 | F162: Color | G162: 10GigE-BaseT | H162: 9 | I162: 17.50451645 | J162: IMX425 | K162: C-Mount | L162: MONO/BAYXX8 | M162: 8 | N162: 660 | O162: 69 | P162: =IF( OR((L162=U$5),(L162=U$6),(L162=U$7),(L162=U$8),(L162=U$9)), 100000/4, 100000) -> 25000 | Q162: 2.5 | R162: 72 | S162: 43.97940009 | X162: 8 | Y162: =IF( OR((L162=U$5),(L162=U$6),(L162=U$7),(L162=U$8),(L162=U$9)), 177, 246) -> 177 | Z162: =IF(OR(G162=$U$13, G162=$U$14),C162*150/9900, C162*400/24000) -> 24.3030303 | AA162: 177 | AB162: 177 | AC162: 184 | AD162: 660 | AE162: 660 | AF162: 9.316032 | AG162: 1604 | AH162: 1100
A163: HT | B163: HT-500S-M | C163: 812 | D163: 620 | E163: 0.50344 | F163: Mono | G163: 10GigE-BaseT | H163: 9 | I163: 9.194741106 | J163: IMX426 | K163: C-Mount | L163: MONO/BAYXX8 | M163: 8 | N163: 1586 | O163: 74 | P163: =IF( OR((L163=U$5),(L163=U$6),(L163=U$7),(L163=U$8),(L163=U$9)), 100000/4, 100000) -> 25000 | Q163: 2.5 | R163: 72 | S163: 43.97940009 | X163: 8 | Y163: =IF( OR((L163=U$5),(L163=U$6),(L163=U$7),(L163=U$8),(L163=U$9)), 122, 215) -> 122 | Z163: =IF(OR(G163=$U$13, G163=$U$14),C163*150/9300, C163*400/24000) -> 13.09677419 | AA163: 122 | AB163: 122 | AC163: 155 | AD163: 1586 | AE163: =FLOOR(IF((10 > (1000000/AD163)-AC163), (1000000/(AC163+10)), AD163),1) -> 1586 | AF163: 6.38764672 | AG163: 812 | AH163: 620
A164: HT | B164: HT-500S-C | C164: 812 | D164: 620 | E164: 0.50344 | F164: Color | G164: 10GigE-BaseT | H164: 9 | I164: 9.194741106 | J164: IMX426 | K164: C-Mount | L164: MONO/BAYXX8 | M164: 8 | N164: 1586 | O164: 69 | P164: =IF( OR((L164=U$5),(L164=U$6),(L164=U$7),(L164=U$8),(L164=U$9)), 100000/4, 100000) -> 25000 | Q164: 2.5 | R164: 72 | S164: 43.97940009 | X164: 8 | Y164: =IF( OR((L164=U$5),(L164=U$6),(L164=U$7),(L164=U$8),(L164=U$9)), 122, 215) -> 122 | Z164: 13.09677419 | AA164: 122 | AB164: 122 | AC164: 155 | AD164: 1586 | AE164: 1586 | AF164: 6.38764672 | AG164: 812 | AH164: 620
A165: HT | B165: HT-25000SBL-M | C165: 5320 | D165: 4600 | E165: 24.472 | F165: Mono | G165: 10GigE-BaseT | H165: 2.74 | I165: =SQRT(C165^2+D165^2)*H165*0.001 -> 19.27028579 | J165: IMX540 | K165: C-Mount | L165: MONO/BAYXX8 | M165: 8 | N165: =AE165 -> 35 | O165: 78 | P165: =IF( OR((L165=U$5),(L165=U$6),(L165=U$7),(L165=U$8),(L165=U$9)), 9500/4, 9500) -> 2375 | Q165: 2 | R165: =IF(20*LOG10(P165/Q165)<72, 20*LOG10(P165/Q165), 72) -> 61.49267237 | S165: =20*LOG10(SQRT(P165)) -> 33.75663614 | X165: =IF( OR((L165= U$8), (L165 = U$10)), 16, IF(OR((L165 = U$6), (L165 = U$9)), 24, IF((L165 = U$5), 8, 12) )) -> 8 | Y165: =IF( OR((L165=U$5),(L165=U$6),(L165=U$7),(L165=U$8),(L165=U$9)), 880, 1240) -> 880 | Z165: 85.80645161 | AA165: =FLOOR( IF(OR((L165= U$8),(L165= U$10)), Z165*16, IF(OR((L165 = U$6), (L165 = U$9)), Z165*24, IF((L165 = U$5),Y165, Z165*12)) ),1) -> 880 | AB165: =IF(AA165 > Y165, AA165, Y165) -> 880 | AC165: 240 | AD165: 35 | AE165: =FLOOR(IF((10 > (1000000/AD165)-AC165), (1000000/(AC165+10)), AD165),1) -> 35 | AF165: =AE165*C165*D165*X165/1000000000 -> 6.85216 | AG165: 5320 | AH165: 4600
A166: HT | B166: HT-25000SBL-C | C166: 5320 | D166: 4600 | E166: 24.472 | F166: Color | G166: 10GigE-BaseT | H166: 2.74 | I166: 19.27028579 | J166: IMX540 | K166: C-Mount | L166: MONO/BAYXX8 | M166: 8 | N166: 35 | O166: 72 | P166: 2375 | Q166: 2 | R166: =IF(20*LOG10(P166/Q166)<72, 20*LOG10(P166/Q166), 72) -> 61.49267237 | S166: =20*LOG10(SQRT(P166)) -> 33.75663614 | X166: 8 | Y166: =IF( OR((L166=U$5),(L166=U$6),(L166=U$7),(L166=U$8),(L166=U$9)), 880, 1240) -> 880 | Z166: 85.80645161 | AA166: 880 | AB166: =IF(AA166 > Y166, AA166, Y166) -> 880 | AC166: 240 | AD166: 35 | AE166: 35 | AF166: 6.85216 | AG166: 5320 | AH166: 4600
A167: HT | B167: HT-20000SBL-M | C167: 4504 | D167: 4504 | E167: 20.286016 | F167: Mono | G167: 10GigE-BaseT | H167: 2.74 | I167: 17.452753 | J167: IMX541 | K167: C-Mount | L167: MONO/BAYXX8 | M167: 8 | N167: 43 | O167: 78 | P167: 2375 | Q167: 2 | R167: 61.49267237 | S167: 33.75663614 | X167: 8 | Y167: =IF( OR((L167=U$5),(L167=U$6),(L167=U$7),(L167=U$8),(L167=U$9)), 720, 1070) -> 720 | Z167: 72.64516129 | AA167: 720 | AB167: 720 | AC167: 240 | AD167: =IF(OR(G167=$U$13, G167=$U$14), FLOOR(IF(AB167 > Y167/100, 150000000/(AB167*(D167+AC167)), (150000000/(Y167*(D167+AC167)))),1), FLOOR(IF(AB167 > Y167/100, 400000000/(AB167*(D167+AC167)), (400000000/(Y167*(D167+AC167)))),1)) -> 43 | AE167: 43 | AF167: 6.978389504 | AG167: 4504 | AH167: 4504
A168: HT | B168: HT-20000SBL-C | C168: 4504 | D168: 4504 | E168: 20.286016 | F168: Color | G168: 10GigE-BaseT | H168: 2.74 | I168: 17.452753 | J168: IMX541 | K168: C-Mount | L168: MONO/BAYXX8 | M168: 8 | N168: 43 | O168: 72 | P168: 2375 | Q168: 2 | R168: 61.49267237 | S168: 33.75663614 | X168: 8 | Y168: =IF( OR((L168=U$5),(L168=U$6),(L168=U$7),(L168=U$8),(L168=U$9)), 720, 1070) -> 720 | Z168: 72.64516129 | AA168: 720 | AB168: 720 | AC168: 240 | AD168: 43 | AE168: 43 | AF168: 6.978389504 | AG168: 4504 | AH168: 4504
A169: HT | B169: HT-16000SBL-M | C169: 5320 | D169: 3032 | E169: 16.13024 | F169: Mono | G169: 10GigE-BaseT | H169: 2.74 | I169: 16.77798096 | J169: IMX542 | K169: C-Mount | L169: MONO/BAYXX8 | M169: 8 | N169: 52 | O169: 78 | P169: 2375 | Q169: 2 | R169: 61.49267237 | S169: 33.75663614 | X169: 8 | Y169: =IF( OR((L169=U$5),(L169=U$6),(L169=U$7),(L169=U$8),(L169=U$9)), 870, 1240) -> 870 | Z169: 85.80645161 | AA169: 870 | AB169: 870 | AC169: 240 | AD169: 52 | AE169: 52 | AF169: 6.71017984 | AG169: 5320 | AH169: 3032
A170: HT | B170: HT-16000SBL-C | C170: 5320 | D170: 3032 | E170: 16.13024 | F170: Color | G170: 10GigE-BaseT | H170: 2.74 | I170: 16.77798096 | J170: IMX542 | K170: C-Mount | L170: MONO/BAYXX8 | M170: 8 | N170: 52 | O170: 72 | P170: 2375 | Q170: 2 | R170: 61.49267237 | S170: 33.75663614 | X170: 8 | Y170: =IF( OR((L170=U$5),(L170=U$6),(L170=U$7),(L170=U$8),(L170=U$9)), 870, 1240) -> 870 | Z170: 85.80645161 | AA170: 870 | AB170: 870 | AC170: 240 | AD170: 52 | AE170: 52 | AF170: 6.71017984 | AG170: 5320 | AH170: 3032
A171: HT | B171: HT-12000SBL-M | C171: 4096 | D171: 3000 | E171: 12.288 | F171: Mono | G171: 10GigE-BaseT | H171: 2.74 | I171: 13.91132729 | J171: IMX545 | K171: C-Mount | L171: MONO/BAYXX8 | M171: 8 | N171: 68 | O171: 78 | P171: 2375 | Q171: 2 | R171: 61.49267237 | S171: 33.75663614 | X171: 8 | Y171: =IF( OR((L171=U$5),(L171=U$6),(L171=U$7),(L171=U$8),(L171=U$9)), 680, 1000) -> 680 | Z171: 66.06451613 | AA171: 680 | AB171: 680 | AC171: 240 | AD171: 68 | AE171: 68 | AF171: 6.684672 | AG171: 4096 | AH171: 3000
A172: HT | B172: HT-12000SBL-C | C172: 4096 | D172: 3000 | E172: 12.288 | F172: Color | G172: 10GigE-BaseT | H172: 2.74 | I172: 13.91132729 | J172: IMX545 | K172: C-Mount | L172: MONO/BAYXX8 | M172: 8 | N172: 68 | O172: 72 | P172: 2375 | Q172: 2 | R172: 61.49267237 | S172: 33.75663614 | X172: 8 | Y172: =IF( OR((L172=U$5),(L172=U$6),(L172=U$7),(L172=U$8),(L172=U$9)), 680, 1000) -> 680 | Z172: 66.06451613 | AA172: 680 | AB172: 680 | AC172: 240 | AD172: 68 | AE172: 68 | AF172: 6.684672 | AG172: 4096 | AH172: 3000
A173: HT | B173: HT-8000SBL-M | C173: 2840 | D173: 2840 | E173: 8.0656 | F173: Mono | G173: 10GigE-BaseT | H173: 2.74 | I173: 11.00484426 | J173: IMX546 | K173: C-Mount | L173: MONO/BAYXX8 | M173: 8 | N173: 73 | O173: 78 | P173: 2375 | Q173: 2 | R173: 61.49267237 | S173: 33.75663614 | X173: 8 | Y173: =IF( OR((L173=U$5),(L173=U$6),(L173=U$7),(L173=U$8),(L173=U$9)), 660, 910) -> 660 | Z173: 45.80645161 | AA173: 660 | AB173: 660 | AC173: 240 | AD173: 73 | AE173: 73 | AF173: 4.7103104 | AG173: 2840 | AH173: 2840
A174: HT | B174: HT-8000SBL-C | C174: 2840 | D174: 2840 | E174: 8.0656 | F174: Color | G174: 10GigE-BaseT | H174: 2.74 | I174: 11.00484426 | J174: IMX546 | K174: C-Mount | L174: MONO/BAYXX8 | M174: 8 | N174: 73 | O174: 72 | P174: 2375 | Q174: 2 | R174: 61.49267237 | S174: 33.75663614 | X174: 8 | Y174: =IF( OR((L174=U$5),(L174=U$6),(L174=U$7),(L174=U$8),(L174=U$9)), 660, 910) -> 660 | Z174: 45.80645161 | AA174: 660 | AB174: 660 | AC174: 240 | AD174: 73 | AE174: 73 | AF174: 4.7103104 | AG174: 2840 | AH174: 2840
A175: HT | B175: HT-5000SBL-M | C175: 2448 | D175: 2048 | E175: 5.013504 | F175: Mono | G175: 10GigE-BaseT | H175: 2.74 | I175: 8.745283372 | J175: IMX547 | K175: C-Mount | L175: MONO/BAYXX8 | M175: 8 | N175: 99 | O175: 78 | P175: 2375 | Q175: 2 | R175: 61.49267237 | S175: 33.75663614 | X175: 8 | Y175: =IF( OR((L175=U$5),(L175=U$6),(L175=U$7),(L175=U$8),(L175=U$9)), 660, 900) -> 660 | Z175: 39.48387097 | AA175: 660 | AB175: 660 | AC175: 240 | AD175: 99 | AE175: 99 | AF175: 3.970695168 | AG175: 2448 | AH175: 2048
A176: HT | B176: HT-5000SBL-C | C176: 2448 | D176: 2048 | E176: 5.013504 | F176: Color | G176: 10GigE-BaseT | H176: 2.74 | I176: 8.745283372 | J176: IMX547 | K176: C-Mount | L176: MONO/BAYXX8 | M176: 8 | N176: 99 | O176: 72 | P176: 2375 | Q176: 2 | R176: 61.49267237 | S176: 33.75663614 | X176: 8 | Y176: =IF( OR((L176=U$5),(L176=U$6),(L176=U$7),(L176=U$8),(L176=U$9)), 660, 900) -> 660 | Z176: 39.48387097 | AA176: 660 | AB176: 660 | AC176: 240 | AD176: 99 | AE176: 99 | AF176: 3.970695168 | AG176: 2448 | AH176: 2048
